Workbook

Sheet Ech brisée-Contoles Tx débiteur
B2: Echéancier avec première échéance brisée (= majorée ou minorée) - Vérifier si le taux nominal proportionnel est conforme ou non au taux débiteur contractuel
B4: Caractéristiques du crédit - Renseigner ou sélectionner toutes les cellules matérialisées en vert…………..…….…...puis cliquer sur le bouton "Calcul" | Q4: Taux débiteur réellement appliqué | V4: Comparaisons des résultats en valeurs relatives
B5: Sélectionner le profil d'échéance qui convient | C5: Durée totale en mois | D5: Montant | E5: Taux débiteur contractuel | F5: Date 1ère mise à disposition des fonds | G5: Date 1ère échéance | I5: =IF(H7=0,"","Première échéance brisée échéancier réel avec intérêts en ''Exact/360'' par défaut") -> Première échéance brisée échéancier réel avec intérêts en ''Exact/360'' par défaut | J5: =IF(H7=0,"",IF(B7="Variables","Modification du montant de l'échéance impossible",IF(P7="Oui","Sélectionner ''Non'' cellule ''P7'' pour permettre la saisie éventuelle d'un autre montant","Si le montant réel de la 1ère échéance est différent saisir échéance réelle"))) -> Si le montant réel de la 1ère échéance est différent saisir échéance réelle | L5: =IF(H7=0,"Pas d'échéance brisée - Calcul intérêts en mois normalisé",IF(H7=1,"Échéance minorée - Un seul calcul intérêts possible = ''Exact/Année civile''","Échéance majorée - Sélectionner ci-dessous l'option retenue pour le calcul des intérêts")) -> Échéance majorée - Sélectionner ci-dessous l'option retenue pour le calcul des intérêts | P5: => => | R5: =IF(H7=0,"Pas d'échéance brisée",IF(R7="OK","Le taux débiteur réellement appliqué est conforme aux taux débiteur contractuel","Le taux débiteur réellement appliqué n'est pas conforme aux taux débiteur contractuel")) -> Le taux débiteur réellement appliqué n'est pas conforme aux taux débiteur contractuel | U5: Oui | V5: Echéancier de référence avec calculs exacts | W5: Echéancier réel | Y5: =IF($R$7<>$Y$7,"Le résultat indiqué en cellule ''Q7'' est à privilégier à cette estimation",IF(W7<=V7,"Taux débiteur contractuel bien respecté","Taux débiteur contractuel non respecté")) -> Taux débiteur contractuel non respecté
L6: Intérêts calculés en ''Exact/Année civile'' Pas d'échéance zéro fictive (hors décret mai 2016) | P6: =IF(AND(J7="",B7="Constantes"),"Lissage échéances ?","Lissage échéance") -> Lissage échéances ? | Q6: Le taux débiteur réellement appliqué est | U6: Non | V6: Approximation taux proportionnels = estimation par interpolation des Taux de Rendements Internes (TRI) Excel base 365 jours
A7: =IF($B$7="Constantes",1,0) -> 1 | B7: Constantes | C7: 240 | D7: 100000 | E7: 0.02 | F7: 2020-01-05 | G7: 2020-02-25 | H7: =IF(I13=EDATE(K13,-1),0,IF(K17="",1,2)) -> 2 | I7: =AF18 -> 622.54 | P7: Non | Q7: =IF(H7=0,E7,BE13) -> 0.02000414059 | R7: =IF(H7=0,"OK",IF(BE13<=E7,"OK","KO")) -> KO | U7: =((1+(E7/12))^(12))-1 -> 0.02018435568 | V7: =IF(H7=0,E7,AA13) -> 0.02000362461 | W7: =IF(H7=0,E7,AR13) -> 0.02000773633 | Y7: =IF(W7<=V7,"OK","KO") -> KO
B8: =IF(AND(B7="Variables",P7="Oui"),"Modiification échéance impossible",IF(AND($A$7=0,G7<=F7),"IMPOSSIBLE - Dates échéances incohérentes",IF(AND($A$7=0,D383<0),"Intérêts négatifs - Echéances trop élevées",IF(AND($A$7=0,E383<0),"Échéances trop élevées - Amortissement de la dernieré écéhéance =",IF(AND($A$7=0,OR($E$383>$C$383,C383>C384)),"Échéances trop faibles - Capital dû au terme du prêt =",IF(C7>360,"IMPOSSIBLE - Durée maximale 360 mois",IF(G7<=F7,"IMPOSSIBLE - Dates échéances incohérentes",""))))))) ->  | G8: =IF(AND($A$7=0,D383<0),"",IF(AND($A$7=0,E383<0),E383,IF(AND($A$7=0,OR($E$383>$C$383,C383>C384)),E383,""))) ->  | H8: =IF(AND($A$7=0,F382<0),F382,IF(AND($A$7=0,F383>H382),F383,"")) ->  | I8: =IF(OR(B7="Variables",J7>0),"Modification échéance impossible",IF(O8=0,"Impossible - Sélectioner ''Non' en cellule ''P7''",IF(J7>(AH18+(AI17*$E$13/12*2)),"Le montant de la 1ère échéance semble trop élevé",IF(AG18<0,"Impossible - Intérêts négatifs","")))) ->  | O8: =IF(AND(P7="Oui",J7>0),0,1) -> 1 | P8: =IF(OR(J7<>"",$B$7="Variables"),"Non",P7) -> Non
B9: Tableau d'amortissement prévisionnel joint à l'offre de prêt (Sans échéance brisée) | I9: Echéancier avec calcul exact intérêts échéance brisée "Exact/année civile" ou bien "Échéance fictive avec mois normalisé + exact/année civile pour jours résiduels" | AD9: Echéancier réel avec intérêts de la première échéance brisée pas forcément bien calculés - Par défaut calcul en "Exact/360" | BC9: Cacul du taux débiteur réellement appliqué
B11: Durée totale en mois | C11: Montant | D11: =IF($A$7=0,"Saisir les paliers d'échéances ou diverses échéances","Type d'échéances") -> Type d'échéances | E11: Taux débiteur contractuel | I11: Date 1ère mise à disposition des fonds | J11: Rang | K11: Date 1ère échéance | L11: Date un an antérieur | M11: Nombre jours année ciivile | N11: Nombre jours courus | O11: =IF(H7=0,L5,IF(H7=1,L5,L6)) -> Intérêts calculés en ''Exact/Année civile'' Pas d'échéance zéro fictive (hors décret mai 2016) | T11: Approximation taux débiteur sur une période en dessus soit : | V11: =IF($H$7=1,$B$13,B13+1) -> 241 | W11: Approximation taux débiteur sur une période en deçà soit : | Y11: =IF($H$7=1,B13-1,B13) -> 240 | Z11: Taux estimé corrigé par Interpolation TRI | AD11: Durée totale en mois | AE11: Montant | AF11: Taux débiteur contractuel | AG11: =I11 -> Date 1ère mise à disposition des fonds | AH11: =K11 -> Date 1ère échéance | AK11: Approximation taux débiteur sur une période en dessus soit : | AM11: =V11 -> 241 | AN11: Approximation taux débiteur sur une période en deçà soit : | AP11: =Y11 -> 240 | AQ11: Taux estimé corrigé par Interpolation TRI | BC11: Durée totale en mois | BD11: Montant | BE11: Taux débiteur réellement appliqué | BF11: =AG11 -> Date 1ère mise à disposition des fonds | BG11: =AH11 -> Date 1ère échéance | BH11: Valeur à atteindre
V12: périodes | Y12: périodes | Z12: 1 jour | AA12: =V11 -> 241 | AB12: =Y11 -> 240 | AM12: périodes | AP12: périodes | AQ12: 1 jour | AR12: =AM11 -> 241 | AS12: =AP11 -> 240
B13: =$C$7 -> 240 | C13: =D7 -> 100000 | E13: =E7 -> 0.02 | I13: =F7 -> 2020-01-05 | K13: =G7 -> 2020-02-25 | T13: =IF($H$7=1,"Estimation taux débiteur maxi","Estimation taux débiteur mini") -> Estimation taux débiteur mini | V13: =V378*12 -> 0.01994280607 | W13: =IF($H$7=1,"Estimation taux débiteur mini","Estimation taux débiteur maxi") -> Estimation taux débiteur maxi | Y13: =Y378*12 -> 0.02012039621 | Z13: =IF($V$13>$Y$13,($V$13-$Y$13)/(365/12),($Y$13-$V$13)/(365/12)) -> 5.838579849e-06 | AA13: =IF($H$7=2,IF($V$13<$Y$13,$V$13+($Z$13*((365/12)-$N$17)),$Y$13-($Z$13*$N$17)),IF($V$13>$Y$13,$V$13-($Z$13*((365/12)-$N$18)),$Y$13+($Z$13*$N$18))) -> 0.02000362461 | AB13: =IF($H$7=2,IF($Y$13>$V$13,$Y$13-($Z$13*$N$17),$Y$13+($Z$13*((365/12)-$N$17))),IF($Y$13<$V$13,$Y$13+($Z$13*$N$18),$Y$13-($Z$13*((365/12)-$N$18)))) -> 0.02000362461 | AD13: =B13 -> 240 | AE13: =C13 -> 100000 | AF13: =E13 -> 0.02 | AG13: =I13 -> 2020-01-05 | AH13: =K13 -> 2020-02-25 | AK13: =IF($H$7=1,"Estimation taux débiteur maxi","Estimation taux débiteur mini") -> Estimation taux débiteur mini | AM13: =AM378*12 -> 0.01994690207 | AN13: =IF($H$7=1,"Estimation taux débiteur mini","Estimation taux débiteur maxi") -> Estimation taux débiteur maxi | AP13: =AP378*12 -> 0.0201245381 | AQ13: =IF($AM$13>$AP$13,($AM$13-$AP$13)/(365/12),($AP$13-$AM$13)/(365/12)) -> 5.840088864e-06 | AR13: =IF($H$7=2,IF($AM$13<$AP$13,$AM$13+($AQ$13*((365/12)-$N$17)),$AP$13-($AQ$13*$N$17)),IF($AM$13>$AP$13,$AM$13-($AQ$13*((365/12)-$N$18)),$AP$13+($AQ$13*$N$18))) -> 0.02000773633 | AS13: =IF($H$7=2,IF($AP$13>$AM$13,$AP$13-($AQ$13*$N$17),$AP$13+($AQ$13*((365/12)-$N$17))),IF($AP$13<$AM$13,$AP$13+($AQ$13*$N$18),$AP$13-($AQ$13*((365/12)-$N$18)))) -> 0.02000773633 | BC13: =AD13 -> 240 | BD13: =AE13 -> 100000 | BE13: 0.02000414059 | BF13: =AG13 -> 2020-01-05 | BG13: =AH13 -> 2020-02-25 | BH13: =AG378-BF378 -> 4.069965871e-05
AE14: =AF14 -> 505.605 | AF14: 505.605 | AG14: =IF(J7>0,J7-AH18,IF(K15=22,((AI17*E13/12)+(AI17*E13/360*N17)),AI17*$E$13/360*N18)) -> 283.3333333
B15: Rang | C15: Échéance | D15: =B7 -> Constantes | E15: Intérêts | F15: Amortissement | G15: Capital dû | K15: =IF(AND(H7=2,L6=I378),21,IF(AND(H7=2,I379),22,"")) -> 21 | O15: =(IF(P7="Oui","Échéance figée","Échéance")) -> Échéance | P15: Intérêts calculs corrests | Q15: =IF($P$8="Non","Amortissement figé","Amortissement") -> Amortissement figé | R15: Capital dû | AD15: Rang | AE15: Dates échéances | AF15: Échéance | AG15: Intérêts calculs incorrects | AI15: Capital dû | BC15: Rang | BD15: Dates échéances | BE15: Échéance figée | BF15: Intérêts | BG15: Amortissement | BH15: Capital dû
B16: 0 | G16: =C13 -> 100000 | I16: Échéance zéro réelle | J16: 0 | K16: =I13 -> 2020-01-05 | L16: =EDATE(K16,-12) -> 2019-01-05 | M16: =K16-L16 -> 365 | R16: =G16 -> 100000 | T16: =IF($H$7=1,EDATE(K18,-1),EDATE(K17,-1)) -> 2019-12-25 | U16: 0 | V16: =R16 -> 100000 | AD16: =J16 -> 0 | AE16: =K16 -> 2020-01-05 | AI16: =R16 -> 100000 | AK16: =T16 -> 2019-12-25 | AL16: =U16 -> 0 | AM16: =AI16 -> 100000 | AY16: =K16 -> 43835 | BC16: =AD16 -> 0 | BD16: =AE16 -> 2020-01-05 | BH16: =AI16 -> 100000
B17: 0 | G17: =G16 -> 100000 | I17: =IF(K17="","","Échéance zéro fictive") -> Échéance zéro fictive | J17: =IF(K17="","",0) -> 0 | K17: =IF((EDATE(K18,-1))<K16,"",EDATE(K18,-1)) -> 2020-01-25 | L17: =IF(K17="","",EDATE(K17,-12)) -> 2019-01-25 | M17: =IF(K17="","",K17-L17) -> 365 | N17: =IF(K17="",0,K17-K16) -> 20 | R17: =R16 -> 100000 | T17: =EDATE(T16,1) -> 2020-01-25 | U17: 1 | V17: =IF($H$7=1,-O18,0) -> 0 | W17: =IF($H$7=1,EDATE(K18,-1),K17) -> 2020-01-25 | X17: 0 | Y17: =V16 -> 100000 | AD17: 0 | AE17: 2020-01-25 | AI17: =R17 -> 100000 | AJ17: =IF(AD17<>$C$7,10000,AI387) -> 10000 | AK17: 2020-01-25 | AL17: 1 | AM17: =IF($H$7=1,-AF18,0) -> 0 | AN17: =W17 -> 2020-01-25 | AO17: 0 | AP17: =AM16 -> 100000 | AY17: =IF($H$7=1,0,K17) -> 43855 | BC17: 0 | BD17: 2020-01-25 | BH17: =AI17 -> 100000
B18: 1 | C18: =IF(AND($A$7=0,$B18>$C$7),0,IF(AND($A$7=0,$B18=$C$7),ROUND(($F18+$E18),2),IF(AND($A$7=0,$D18=0),ROUND($C17,2),IF(AND($A$7=0,$B18=$B$13),ROUND($F18+$E18,2),IF($B18>$B$13,0,IF(AND($A$7=0,$D18<>0),ROUND($D18,2),IF($B18>$B$13,0,IF($B18=$B$13,ROUND($F18+$E18,2),ROUND(-PMT($E$13/12,$B$13,$C$13,0,0),2))))))))) -> 505.88 | D18: 400 | E18: =IF(B18>$B$13,0,ROUND(G17*$E$13/12,2)) -> 166.67 | F18: =IF(B18>$B$13,0,IF(B18=$B$13,G17,C18-E18)) -> 339.21 | G18: =IF(B18>$B$13,0,G17-F18) -> 99660.79 | J18: 1 | K18: =K13 -> 2020-02-25 | L18: =EDATE(K18,-12) -> 2019-02-25 | M18: =K18-L18 -> 365 | N18: =K18-K16 -> 51 | O18: =IF(J18>$C$7,0,IF($P$7="Oui",IF(J18=$C$7,ROUND(Q18+P18,2),ROUND($AE$14,2)),Q18+P18)) -> 618.6620548 | P18: =IF(H7=0,R17*$E$13/12,IF(H7=1,R17*E13/M18*N18,IF(K15=21,R17*$E$13/M18*N18,IF(K15=22,(R17*$E$13/12)+(R17*$E$13/M17*N17),"")))) -> 279.4520548 | Q18: =IF($P$7="Oui",O18-P18,F18) -> 339.21 | R18: =IF(J18>$B$13,0,R17-Q18) -> 99660.79 | T18: =EDATE(T17,1) -> 2020-02-25 | U18: 2 | V18: =IF(U18>$V$11,0,IF($H$7=1,-O19,-O18)) -> -618.6620548 | W18: =EDATE(W17,1) -> 2020-02-25 | X18: 1 | Y18: =IF(X18>$Y$11,0,IF($H$7=1,-O18,V18)) -> -618.6620548 | AD18: 1 | AE18: 2020-02-25 | AF18: =IF($P$7="Oui",AE14,ROUND(AH18+AG18,2)) -> 622.54 | AG18: =IF(AG14<>(AI17*$E$13/360*N18),AG14,AI17*$E$7/360*N18) -> 283.3333333 | AH18: =IF($P$7="Oui",IF(AD18=$C$7,AI17,AF18-AG18),Q18) -> 339.21 | AI18: =AI17-AH18 -> 99660.79 | AJ18: 10000 | AK18: 2020-02-25 | AL18: 2 | AM18: =IF(AL18>$V$11,0,IF($H$7=1,-AF19,-AF18)) -> -622.54 | AN18: =EDATE(AN17,1) -> 2020-02-25 | AO18: 1 | AP18: =IF(AO18>$Y$11,0,IF($H$7=1,-AF18,AM18)) -> -622.54 | AT18: =IF($B18=$C$7,B18,"") ->  | AU18: =IF($B18=$C$7,C18,"") ->  | AV18: =IF($B18=$C$7,E18,"") ->  | AW18: =IF($B18=$C$7,F18,"") ->  | AX18: =IF($B18=$C$7,G18,"") ->  | AY18: =K18 -> 43886 | BA18: =IF($B18=$C$7,IF(AND($A$7=0,$B18>$C$7),0,IF(AND($A$7=0,$D18=0),$C17,IF(AND($A$7=0,$B18=$B$13),ROUNDDOWN($F18+$E18,2),IF($B18>$B$13,0,IF(AND($A$7=0,$D18<>0),$D18,IF($B18>$B$13,0,IF($B18=$B$13,ROUNDDOWN($F18+$E18,2),ROUND(-PMT($E$13/12,$B$13,$C$13,0,0),2))))))))) -> FALSE | BC18: 1 | BD18: 2020-02-25 | BE18: =AF18 -> 622.54 | BF18: =IF(K15=22,((BH17*BE13/12)+(BH17*$BE$13/365*N17)),BH17*$BE$13/365*N18) -> 279.5099096 | BG18: =IF(BC18=$C$7,BH17,BE18-BF18) -> 343.0300904 | BH18: =BH17-BG18 -> 99656.96991
B19: 2 | C19: =IF(AND($A$7=0,$B19>$C$7),0,IF(AND($A$7=0,$B19=$C$7),ROUND(($F19+$E19),2),IF(AND($A$7=0,$D19=0),ROUND($C18,2),IF(AND($A$7=0,$B19=$B$13),ROUND($F19+$E19,2),IF($B19>$B$13,0,IF(AND($A$7=0,$D19<>0),ROUND($D19,2),IF($B19>$B$13,0,IF($B19=$B$13,ROUND($F19+$E19,2),ROUND(-PMT($E$13/12,$B$13,$C$13,0,0),2))))))))) -> 505.88 | E19: =IF(B19>$B$13,0,ROUND(G18*$E$13/12,2)) -> 166.1 | F19: 339.78 | G19: 99321.01 | J19: 2 | K19: =EDATE(K18,1) -> 2020-03-25 | O19: =IF(J19>$C$7,0,IF($P$7="Oui",IF(J19=$C$7,ROUND(Q19+P19,2),$AE$14),ROUND(C19,2))) -> 505.88 | P19: =IF($P$7="Oui",R18*$E$7/12,ROUND(R18*$E$7/12,2)) -> 166.1 | Q19: =IF($P$7="Oui",O19-P19,F19) -> 339.78 | R19: =IF(J19>$B$13,0,R18-Q19) -> 99321.01 | T19: 2020-03-25 | U19: 3 | V19: -505.88 | W19: =EDATE(W18,1) -> 2020-03-25 | X19: 2 | Y19: -505.88 | AD19: 2 | AE19: 2020-03-25 | AF19: =IF(AD19>$C$7,0,IF($P$7="Oui",IF(AD19=$C$7,AH19+AG19,$AE$14),O19)) -> 505.88 | AG19: =IF($P$7="Oui",AI18*$AF$13/12,AI18*$E$7/12) -> 166.1013167 | AH19: =IF($P$7="Oui",IF(AD19=$C$7,AI18,AF19-AG19),Q19) -> 339.78 | AI19: =AI18-AH19 -> 99321.01 | AJ19: 10000 | AK19: 2020-03-25 | AL19: 3 | AM19: -505.88 | AN19: =EDATE(AN18,1) -> 2020-03-25 | AO19: 2 | AP19: -505.88 | AY19: 43915 | BA19: FALSE | BC19: 2 | BD19: 2020-03-25 | BE19: 505.88 | BF19: =BH18*$BE$13/12 -> 166.1293364 | BG19: =IF(BC19=$C$7,BH18,BE19-BF19) -> 339.7506636 | BH19: =BH18-BG19 -> 99317.21925
B20: 3 | C20: 505.88 | E20: 165.54 | F20: 340.34 | G20: 98980.67 | J20: 3 | K20: =EDATE(K19,1) -> 2020-04-25 | O20: =IF(J20>$C$7,0,IF($P$7="Oui",IF(J20=$C$7,ROUND(Q20+P20,2),$AE$14),ROUND(C20,2))) -> 505.88 | P20: =IF($P$7="Oui",R19*$E$7/12,ROUND(R19*$E$7/12,2)) -> 165.54 | Q20: 340.34 | R20: 98980.67 | T20: 2020-04-25 | U20: 4 | V20: -505.88 | W20: 2020-04-25 | X20: 3 | Y20: -505.88 | AD20: 3 | AE20: 2020-04-25 | AF20: =IF(AD20>$C$7,0,IF($P$7="Oui",IF(AD20=$C$7,AH20+AG20,$AE$14),O20)) -> 505.88 | AG20: =IF($P$7="Oui",AI19*$AF$13/12,AI19*$E$7/12) -> 165.5350167 | AH20: =IF($P$7="Oui",IF(AD20=$C$7,AI19,AF20-AG20),Q20) -> 340.34 | AI20: 98980.67 | AJ20: 10000 | AK20: 2020-04-25 | AL20: 4 | AM20: -505.88 | AN20: 2020-04-25 | AO20: 3 | AP20: -505.88 | AY20: 43946 | BA20: FALSE | BC20: 3 | BD20: 2020-04-25 | BE20: 505.88 | BF20: =BH19*$BE$13/12 -> 165.562968 | BG20: 340.317032 | BH20: 98976.90221
B21: 4 | C21: 505.88 | E21: 164.97 | F21: 340.91 | G21: 98639.76 | J21: 4 | K21: 2020-05-25 | O21: 505.88 | P21: 164.97 | Q21: 340.91 | R21: 98639.76 | T21: 2020-05-25 | U21: 5 | V21: -505.88 | W21: 2020-05-25 | X21: 4 | Y21: -505.88 | AD21: 4 | AE21: 2020-05-25 | AF21: 505.88 | AG21: 164.9677833 | AH21: 340.91 | AI21: 98639.76 | AJ21: 10000 | AK21: 2020-05-25 | AL21: 5 | AM21: -505.88 | AN21: 2020-05-25 | AO21: 4 | AP21: -505.88 | AY21: 43976 | BA21: FALSE | BC21: 4 | BD21: 2020-05-25 | BE21: 505.88 | BF21: 164.9956556 | BG21: 340.8843444 | BH21: 98636.01787
B22: 5 | C22: 505.88 | E22: 164.4 | F22: 341.48 | G22: 98298.28 | J22: 5 | K22: 2020-06-25 | O22: 505.88 | P22: 164.4 | Q22: 341.48 | R22: 98298.28 | T22: 2020-06-25 | U22: 6 | V22: -505.88 | W22: 2020-06-25 | X22: 5 | Y22: -505.88 | AD22: 5 | AE22: 2020-06-25 | AF22: 505.88 | AG22: 164.3996 | AH22: 341.48 | AI22: 98298.28 | AJ22: 10000 | AK22: 2020-06-25 | AL22: 6 | AM22: -505.88 | AN22: 2020-06-25 | AO22: 5 | AP22: -505.88 | AY22: 44007 | BA22: FALSE | BC22: 5 | BD22: 2020-06-25 | BE22: 505.88 | BF22: 164.4273974 | BG22: 341.4526026 | BH22: 98294.56527
B23: 6 | C23: 505.88 | E23: 163.83 | F23: 342.05 | G23: 97956.23 | J23: 6 | K23: 2020-07-25 | O23: 505.88 | P23: 163.83 | Q23: 342.05 | R23: 97956.23 | T23: 2020-07-25 | U23: 7 | V23: -505.88 | W23: 2020-07-25 | X23: 6 | Y23: -505.88 | AD23: 6 | AE23: 2020-07-25 | AF23: 505.88 | AG23: 163.8304667 | AH23: 342.05 | AI23: 97956.23 | AJ23: 10000 | AK23: 2020-07-25 | AL23: 7 | AM23: -505.88 | AN23: 2020-07-25 | AO23: 6 | AP23: -505.88 | AY23: 44037 | BA23: FALSE | BC23: 6 | BD23: 2020-07-25 | BE23: 505.88 | BF23: 163.8581919 | BG23: 342.0218081 | BH23: 97952.54346
B24: 7 | C24: 505.88 | E24: 163.26 | F24: 342.62 | G24: 97613.61 | J24: 7 | K24: 2020-08-25 | O24: 505.88 | P24: 163.26 | Q24: 342.62 | R24: 97613.61 | T24: 2020-08-25 | U24: 8 | V24: -505.88 | W24: 2020-08-25 | X24: 7 | Y24: -505.88 | AD24: 7 | AE24: 2020-08-25 | AF24: 505.88 | AG24: 163.2603833 | AH24: 342.62 | AI24: 97613.61 | AJ24: 10000 | AK24: 2020-08-25 | AL24: 8 | AM24: -505.88 | AN24: 2020-08-25 | AO24: 7 | AP24: -505.88 | AY24: 44068 | BA24: FALSE | BC24: 7 | BD24: 2020-08-25 | BE24: 505.88 | BF24: 163.2880375 | BG24: 342.5919625 | BH24: 97609.9515
B25: 8 | C25: 505.88 | E25: 162.69 | F25: 343.19 | G25: 97270.42 | J25: 8 | K25: 2020-09-25 | O25: 505.88 | P25: 162.69 | Q25: 343.19 | R25: 97270.42 | T25: 2020-09-25 | U25: 9 | V25: -505.88 | W25: 2020-09-25 | X25: 8 | Y25: -505.88 | AD25: 8 | AE25: 2020-09-25 | AF25: 505.88 | AG25: 162.68935 | AH25: 343.19 | AI25: 97270.42 | AJ25: 10000 | AK25: 2020-09-25 | AL25: 9 | AM25: -505.88 | AN25: 2020-09-25 | AO25: 8 | AP25: -505.88 | AY25: 44099 | BA25: FALSE | BC25: 8 | BD25: 2020-09-25 | BE25: 505.88 | BF25: 162.7169327 | BG25: 343.1630673 | BH25: 97266.78843
B26: 9 | C26: 505.88 | E26: 162.12 | F26: 343.76 | G26: 96926.66 | J26: 9 | K26: 2020-10-25 | O26: 505.88 | P26: 162.12 | Q26: 343.76 | R26: 96926.66 | T26: 2020-10-25 | U26: 10 | V26: -505.88 | W26: 2020-10-25 | X26: 9 | Y26: -505.88 | AD26: 9 | AE26: 2020-10-25 | AF26: 505.88 | AG26: 162.1173667 | AH26: 343.76 | AI26: 96926.66 | AJ26: 10000 | AK26: 2020-10-25 | AL26: 10 | AM26: -505.88 | AN26: 2020-10-25 | AO26: 9 | AP26: -505.88 | AY26: 44129 | BA26: FALSE | BC26: 9 | BD26: 2020-10-25 | BE26: 505.88 | BF26: 162.1448758 | BG26: 343.7351242 | BH26: 96923.0533
B27: 10 | C27: 505.88 | E27: 161.54 | F27: 344.34 | G27: 96582.32 | J27: 10 | K27: 2020-11-25 | O27: 505.88 | P27: 161.54 | Q27: 344.34 | R27: 96582.32 | T27: 2020-11-25 | U27: 11 | V27: -505.88 | W27: 2020-11-25 | X27: 10 | Y27: -505.88 | AD27: 10 | AE27: 2020-11-25 | AF27: 505.88 | AG27: 161.5444333 | AH27: 344.34 | AI27: 96582.32 | AJ27: 10000 | AK27: 2020-11-25 | AL27: 11 | AM27: -505.88 | AN27: 2020-11-25 | AO27: 10 | AP27: -505.88 | AY27: 44160 | BA27: FALSE | BC27: 10 | BD27: 2020-11-25 | BE27: 505.88 | BF27: 161.5718654 | BG27: 344.3081346 | BH27: 96578.74517
B28: 11 | C28: 505.88 | E28: 160.97 | F28: 344.91 | G28: 96237.41 | J28: 11 | K28: 2020-12-25 | O28: 505.88 | P28: 160.97 | Q28: 344.91 | R28: 96237.41 | T28: 2020-12-25 | U28: 12 | V28: -505.88 | W28: 2020-12-25 | X28: 11 | Y28: -505.88 | AD28: 11 | AE28: 2020-12-25 | AF28: 505.88 | AG28: 160.9705333 | AH28: 344.91 | AI28: 96237.41 | AJ28: 10000 | AK28: 2020-12-25 | AL28: 12 | AM28: -505.88 | AN28: 2020-12-25 | AO28: 11 | AP28: -505.88 | AY28: 44190 | BA28: FALSE | BC28: 11 | BD28: 2020-12-25 | BE28: 505.88 | BF28: 160.9978997 | BG28: 344.8821003 | BH28: 96233.86307
B29: 12 | C29: 505.88 | E29: 160.4 | F29: 345.48 | G29: 95891.93 | J29: 12 | K29: 2021-01-25 | O29: 505.88 | P29: 160.4 | Q29: 345.48 | R29: 95891.93 | T29: 2021-01-25 | U29: 13 | V29: -505.88 | W29: 2021-01-25 | X29: 12 | Y29: -505.88 | AD29: 12 | AE29: 2021-01-25 | AF29: 505.88 | AG29: 160.3956833 | AH29: 345.48 | AI29: 95891.93 | AJ29: 10000 | AK29: 2021-01-25 | AL29: 13 | AM29: -505.88 | AN29: 2021-01-25 | AO29: 12 | AP29: -505.88 | AY29: 44221 | BA29: FALSE | BC29: 12 | BD29: 2021-01-25 | BE29: 505.88 | BF29: 160.4229772 | BG29: 345.4570228 | BH29: 95888.40605
B30: 13 | C30: 505.88 | E30: 159.82 | F30: 346.06 | G30: 95545.87 | J30: 13 | K30: 2021-02-25 | O30: 505.88 | P30: 159.82 | Q30: 346.06 | R30: 95545.87 | T30: 2021-02-25 | U30: 14 | V30: -505.88 | W30: 2021-02-25 | X30: 13 | Y30: -505.88 | AD30: 13 | AE30: 2021-02-25 | AF30: 505.88 | AG30: 159.8198833 | AH30: 346.06 | AI30: 95545.87 | AJ30: 10000 | AK30: 2021-02-25 | AL30: 14 | AM30: -505.88 | AN30: 2021-02-25 | AO30: 13 | AP30: -505.88 | AY30: 44252 | BA30: FALSE | BC30: 13 | BD30: 2021-02-25 | BE30: 505.88 | BF30: 159.8470963 | BG30: 346.0329037 | BH30: 95542.37314
B31: 14 | C31: 505.88 | E31: 159.24 | F31: 346.64 | G31: 95199.23 | J31: 14 | K31: 2021-03-25 | O31: 505.88 | P31: 159.24 | Q31: 346.64 | R31: 95199.23 | T31: 2021-03-25 | U31: 15 | V31: -505.88 | W31: 2021-03-25 | X31: 14 | Y31: -505.88 | AD31: 14 | AE31: 2021-03-25 | AF31: 505.88 | AG31: 159.2431167 | AH31: 346.64 | AI31: 95199.23 | AJ31: 10000 | AK31: 2021-03-25 | AL31: 15 | AM31: -505.88 | AN31: 2021-03-25 | AO31: 14 | AP31: -505.88 | AY31: 44280 | BA31: FALSE | BC31: 14 | BD31: 2021-03-25 | BE31: 505.88 | BF31: 159.2702554 | BG31: 346.6097446 | BH31: 95195.7634
B32: 15 | C32: 505.88 | E32: 158.67 | F32: 347.21 | G32: 94852.02 | J32: 15 | K32: 2021-04-25 | O32: 505.88 | P32: 158.67 | Q32: 347.21 | R32: 94852.02 | T32: 2021-04-25 | U32: 16 | V32: -505.88 | W32: 2021-04-25 | X32: 15 | Y32: -505.88 | AD32: 15 | AE32: 2021-04-25 | AF32: 505.88 | AG32: 158.6653833 | AH32: 347.21 | AI32: 94852.02 | AJ32: 10000 | AK32: 2021-04-25 | AL32: 16 | AM32: -505.88 | AN32: 2021-04-25 | AO32: 15 | AP32: -505.88 | AY32: 44311 | BA32: FALSE | BC32: 15 | BD32: 2021-04-25 | BE32: 505.88 | BF32: 158.6924529 | BG32: 347.1875471 | BH32: 94848.57585
B33: 16 | C33: 505.88 | E33: 158.09 | F33: 347.79 | G33: 94504.23 | J33: 16 | K33: 2021-05-25 | O33: 505.88 | P33: 158.09 | Q33: 347.79 | R33: 94504.23 | T33: 2021-05-25 | U33: 17 | V33: -505.88 | W33: 2021-05-25 | X33: 16 | Y33: -505.88 | AD33: 16 | AE33: 2021-05-25 | AF33: 505.88 | AG33: 158.0867 | AH33: 347.79 | AI33: 94504.23 | AJ33: 10000 | AK33: 2021-05-25 | AL33: 17 | AM33: -505.88 | AN33: 2021-05-25 | AO33: 16 | AP33: -505.88 | AY33: 44341 | BA33: FALSE | BC33: 16 | BD33: 2021-05-25 | BE33: 505.88 | BF33: 158.1136871 | BG33: 347.7663129 | BH33: 94500.80954
B34: 17 | C34: 505.88 | E34: 157.51 | F34: 348.37 | G34: 94155.86 | J34: 17 | K34: 2021-06-25 | O34: 505.88 | P34: 157.51 | Q34: 348.37 | R34: 94155.86 | T34: 2021-06-25 | U34: 18 | V34: -505.88 | W34: 2021-06-25 | X34: 17 | Y34: -505.88 | AD34: 17 | AE34: 2021-06-25 | AF34: 505.88 | AG34: 157.50705 | AH34: 348.37 | AI34: 94155.86 | AJ34: 10000 | AK34: 2021-06-25 | AL34: 18 | AM34: -505.88 | AN34: 2021-06-25 | AO34: 17 | AP34: -505.88 | AY34: 44372 | BA34: FALSE | BC34: 17 | BD34: 2021-06-25 | BE34: 505.88 | BF34: 157.5339566 | BG34: 348.3460434 | BH34: 94152.4635
B35: 18 | C35: 505.88 | E35: 156.93 | F35: 348.95 | G35: 93806.91 | J35: 18 | K35: 2021-07-25 | O35: 505.88 | P35: 156.93 | Q35: 348.95 | R35: 93806.91 | T35: 2021-07-25 | U35: 19 | V35: -505.88 | W35: 2021-07-25 | X35: 18 | Y35: -505.88 | AD35: 18 | AE35: 2021-07-25 | AF35: 505.88 | AG35: 156.9264333 | AH35: 348.95 | AI35: 93806.91 | AJ35: 10000 | AK35: 2021-07-25 | AL35: 19 | AM35: -505.88 | AN35: 2021-07-25 | AO35: 18 | AP35: -505.88 | AY35: 44402 | BA35: FALSE | BC35: 18 | BD35: 2021-07-25 | BE35: 505.88 | BF35: 156.9532597 | BG35: 348.9267403 | BH35: 93803.53676
B36: 19 | C36: 505.88 | E36: 156.34 | F36: 349.54 | G36: 93457.37 | J36: 19 | K36: 2021-08-25 | O36: 505.88 | P36: 156.34 | Q36: 349.54 | R36: 93457.37 | T36: 2021-08-25 | U36: 20 | V36: -505.88 | W36: 2021-08-25 | X36: 19 | Y36: -505.88 | AD36: 19 | AE36: 2021-08-25 | AF36: 505.88 | AG36: 156.34485 | AH36: 349.54 | AI36: 93457.37 | AJ36: 10000 | AK36: 2021-08-25 | AL36: 20 | AM36: -505.88 | AN36: 2021-08-25 | AO36: 19 | AP36: -505.88 | AY36: 44433 | BA36: FALSE | BC36: 19 | BD36: 2021-08-25 | BE36: 505.88 | BF36: 156.3715947 | BG36: 349.5084053 | BH36: 93454.02835
B37: 20 | C37: 505.88 | E37: 155.76 | F37: 350.12 | G37: 93107.25 | J37: 20 | K37: 2021-09-25 | O37: 505.88 | P37: 155.76 | Q37: 350.12 | R37: 93107.25 | T37: 2021-09-25 | U37: 21 | V37: -505.88 | W37: 2021-09-25 | X37: 20 | Y37: -505.88 | AD37: 20 | AE37: 2021-09-25 | AF37: 505.88 | AG37: 155.7622833 | AH37: 350.12 | AI37: 93107.25 | AJ37: 10000 | AK37: 2021-09-25 | AL37: 21 | AM37: -505.88 | AN37: 2021-09-25 | AO37: 20 | AP37: -505.88 | AY37: 44464 | BA37: FALSE | BC37: 20 | BD37: 2021-09-25 | BE37: 505.88 | BF37: 155.7889601 | BG37: 350.0910399 | BH37: 93103.93731
B38: 21 | C38: 505.88 | E38: 155.18 | F38: 350.7 | G38: 92756.55 | J38: 21 | K38: 2021-10-25 | O38: 505.88 | P38: 155.18 | Q38: 350.7 | R38: 92756.55 | T38: 2021-10-25 | U38: 22 | V38: -505.88 | W38: 2021-10-25 | X38: 21 | Y38: -505.88 | AD38: 21 | AE38: 2021-10-25 | AF38: 505.88 | AG38: 155.17875 | AH38: 350.7 | AI38: 92756.55 | AJ38: 10000 | AK38: 2021-10-25 | AL38: 22 | AM38: -505.88 | AN38: 2021-10-25 | AO38: 21 | AP38: -505.88 | AY38: 44494 | BA38: FALSE | BC38: 21 | BD38: 2021-10-25 | BE38: 505.88 | BF38: 155.2053543 | BG38: 350.6746457 | BH38: 92753.26266
B39: 22 | C39: 505.88 | E39: 154.59 | F39: 351.29 | G39: 92405.26 | J39: 22 | K39: 2021-11-25 | O39: 505.88 | P39: 154.59 | Q39: 351.29 | R39: 92405.26 | T39: 2021-11-25 | U39: 23 | V39: -505.88 | W39: 2021-11-25 | X39: 22 | Y39: -505.88 | AD39: 22 | AE39: 2021-11-25 | AF39: 505.88 | AG39: 154.59425 | AH39: 351.29 | AI39: 92405.26 | AJ39: 10000 | AK39: 2021-11-25 | AL39: 23 | AM39: -505.88 | AN39: 2021-11-25 | AO39: 22 | AP39: -505.88 | AY39: 44525 | BA39: FALSE | BC39: 22 | BD39: 2021-11-25 | BE39: 505.88 | BF39: 154.6207755 | BG39: 351.2592245 | BH39: 92402.00344
B40: 23 | C40: 505.88 | E40: 154.01 | F40: 351.87 | G40: 92053.39 | J40: 23 | K40: 2021-12-25 | O40: 505.88 | P40: 154.01 | Q40: 351.87 | R40: 92053.39 | T40: 2021-12-25 | U40: 24 | V40: -505.88 | W40: 2021-12-25 | X40: 23 | Y40: -505.88 | AD40: 23 | AE40: 2021-12-25 | AF40: 505.88 | AG40: 154.0087667 | AH40: 351.87 | AI40: 92053.39 | AJ40: 10000 | AK40: 2021-12-25 | AL40: 24 | AM40: -505.88 | AN40: 2021-12-25 | AO40: 23 | AP40: -505.88 | AY40: 44555 | BA40: FALSE | BC40: 23 | BD40: 2021-12-25 | BE40: 505.88 | BF40: 154.0352223 | BG40: 351.8447777 | BH40: 92050.15866
B41: 24 | C41: 505.88 | E41: 153.42 | F41: 352.46 | G41: 91700.93 | J41: 24 | K41: 2022-01-25 | O41: 505.88 | P41: 153.42 | Q41: 352.46 | R41: 91700.93 | T41: 2022-01-25 | U41: 25 | V41: -505.88 | W41: 2022-01-25 | X41: 24 | Y41: -505.88 | AD41: 24 | AE41: 2022-01-25 | AF41: 505.88 | AG41: 153.4223167 | AH41: 352.46 | AI41: 91700.93 | AJ41: 10000 | AK41: 2022-01-25 | AL41: 25 | AM41: -505.88 | AN41: 2022-01-25 | AO41: 24 | AP41: -505.88 | AY41: 44586 | BA41: FALSE | BC41: 24 | BD41: 2022-01-25 | BE41: 505.88 | BF41: 153.4486929 | BG41: 352.4313071 | BH41: 91697.72735
B42: 25 | C42: 505.88 | E42: 152.83 | F42: 353.05 | G42: 91347.88 | J42: 25 | K42: 2022-02-25 | O42: 505.88 | P42: 152.83 | Q42: 353.05 | R42: 91347.88 | T42: 2022-02-25 | U42: 26 | V42: -505.88 | W42: 2022-02-25 | X42: 25 | Y42: -505.88 | AD42: 25 | AE42: 2022-02-25 | AF42: 505.88 | AG42: 152.8348833 | AH42: 353.05 | AI42: 91347.88 | AJ42: 10000 | AK42: 2022-02-25 | AL42: 26 | AM42: -505.88 | AN42: 2022-02-25 | AO42: 25 | AP42: -505.88 | AY42: 44617 | BA42: FALSE | BC42: 25 | BD42: 2022-02-25 | BE42: 505.88 | BF42: 152.8611858 | BG42: 353.0188142 | BH42: 91344.70854
B43: 26 | C43: 505.88 | E43: 152.25 | F43: 353.63 | G43: 90994.25 | J43: 26 | K43: 2022-03-25 | O43: 505.88 | P43: 152.25 | Q43: 353.63 | R43: 90994.25 | T43: 2022-03-25 | U43: 27 | V43: -505.88 | W43: 2022-03-25 | X43: 26 | Y43: -505.88 | AD43: 26 | AE43: 2022-03-25 | AF43: 505.88 | AG43: 152.2464667 | AH43: 353.63 | AI43: 90994.25 | AJ43: 10000 | AK43: 2022-03-25 | AL43: 27 | AM43: -505.88 | AN43: 2022-03-25 | AO43: 26 | AP43: -505.88 | AY43: 44645 | BA43: FALSE | BC43: 26 | BD43: 2022-03-25 | BE43: 505.88 | BF43: 152.2726993 | BG43: 353.6073007 | BH43: 90991.10124
B44: 27 | C44: 505.88 | E44: 151.66 | F44: 354.22 | G44: 90640.03 | J44: 27 | K44: 2022-04-25 | O44: 505.88 | P44: 151.66 | Q44: 354.22 | R44: 90640.03 | T44: 2022-04-25 | U44: 28 | V44: -505.88 | W44: 2022-04-25 | X44: 27 | Y44: -505.88 | AD44: 27 | AE44: 2022-04-25 | AF44: 505.88 | AG44: 151.6570833 | AH44: 354.22 | AI44: 90640.03 | AJ44: 10000 | AK44: 2022-04-25 | AL44: 28 | AM44: -505.88 | AN44: 2022-04-25 | AO44: 27 | AP44: -505.88 | AY44: 44676 | BA44: FALSE | BC44: 27 | BD44: 2022-04-25 | BE44: 505.88 | BF44: 151.6832318 | BG44: 354.1967682 | BH44: 90636.90447
B45: 28 | C45: 505.88 | E45: 151.07 | F45: 354.81 | G45: 90285.22 | J45: 28 | K45: 2022-05-25 | O45: 505.88 | P45: 151.07 | Q45: 354.81 | R45: 90285.22 | T45: 2022-05-25 | U45: 29 | V45: -505.88 | W45: 2022-05-25 | X45: 28 | Y45: -505.88 | AD45: 28 | AE45: 2022-05-25 | AF45: 505.88 | AG45: 151.0667167 | AH45: 354.81 | AI45: 90285.22 | AJ45: 10000 | AK45: 2022-05-25 | AL45: 29 | AM45: -505.88 | AN45: 2022-05-25 | AO45: 28 | AP45: -505.88 | AY45: 44706 | BA45: FALSE | BC45: 28 | BD45: 2022-05-25 | BE45: 505.88 | BF45: 151.0927816 | BG45: 354.7872184 | BH45: 90282.11725
B46: 29 | C46: 505.88 | E46: 150.48 | F46: 355.4 | G46: 89929.82 | J46: 29 | K46: 2022-06-25 | O46: 505.88 | P46: 150.48 | Q46: 355.4 | R46: 89929.82 | T46: 2022-06-25 | U46: 30 | V46: -505.88 | W46: 2022-06-25 | X46: 29 | Y46: -505.88 | AD46: 29 | AE46: 2022-06-25 | AF46: 505.88 | AG46: 150.4753667 | AH46: 355.4 | AI46: 89929.82 | AJ46: 10000 | AK46: 2022-06-25 | AL46: 30 | AM46: -505.88 | AN46: 2022-06-25 | AO46: 29 | AP46: -505.88 | AY46: 44737 | BA46: FALSE | BC46: 29 | BD46: 2022-06-25 | BE46: 505.88 | BF46: 150.5013472 | BG46: 355.3786528 | BH46: 89926.7386
B47: 30 | C47: 505.88 | E47: 149.88 | F47: 356 | G47: 89573.82 | J47: 30 | K47: 2022-07-25 | O47: 505.88 | P47: 149.88 | Q47: 356 | R47: 89573.82 | T47: 2022-07-25 | U47: 31 | V47: -505.88 | W47: 2022-07-25 | X47: 30 | Y47: -505.88 | AD47: 30 | AE47: 2022-07-25 | AF47: 505.88 | AG47: 149.8830333 | AH47: 356 | AI47: 89573.82 | AJ47: 10000 | AK47: 2022-07-25 | AL47: 31 | AM47: -505.88 | AN47: 2022-07-25 | AO47: 30 | AP47: -505.88 | AY47: 44767 | BA47: FALSE | BC47: 30 | BD47: 2022-07-25 | BE47: 505.88 | BF47: 149.9089268 | BG47: 355.9710732 | BH47: 89570.76753
B48: 31 | C48: 505.88 | E48: 149.29 | F48: 356.59 | G48: 89217.23 | J48: 31 | K48: 2022-08-25 | O48: 505.88 | P48: 149.29 | Q48: 356.59 | R48: 89217.23 | T48: 2022-08-25 | U48: 32 | V48: -505.88 | W48: 2022-08-25 | X48: 31 | Y48: -505.88 | AD48: 31 | AE48: 2022-08-25 | AF48: 505.88 | AG48: 149.2897 | AH48: 356.59 | AI48: 89217.23 | AJ48: 10000 | AK48: 2022-08-25 | AL48: 32 | AM48: -505.88 | AN48: 2022-08-25 | AO48: 31 | AP48: -505.88 | AY48: 44798 | BA48: FALSE | BC48: 31 | BD48: 2022-08-25 | BE48: 505.88 | BF48: 149.3155188 | BG48: 356.5644812 | BH48: 89214.20305
B49: 32 | C49: 505.88 | E49: 148.7 | F49: 357.18 | G49: 88860.05 | J49: 32 | K49: 2022-09-25 | O49: 505.88 | P49: 148.7 | Q49: 357.18 | R49: 88860.05 | T49: 2022-09-25 | U49: 33 | V49: -505.88 | W49: 2022-09-25 | X49: 32 | Y49: -505.88 | AD49: 32 | AE49: 2022-09-25 | AF49: 505.88 | AG49: 148.6953833 | AH49: 357.18 | AI49: 88860.05 | AJ49: 10000 | AK49: 2022-09-25 | AL49: 33 | AM49: -505.88 | AN49: 2022-09-25 | AO49: 32 | AP49: -505.88 | AY49: 44829 | BA49: FALSE | BC49: 32 | BD49: 2022-09-25 | BE49: 505.88 | BF49: 148.7211217 | BG49: 357.1588783 | BH49: 88857.04417
B50: 33 | C50: 505.88 | E50: 148.1 | F50: 357.78 | G50: 88502.27 | J50: 33 | K50: 2022-10-25 | O50: 505.88 | P50: 148.1 | Q50: 357.78 | R50: 88502.27 | T50: 2022-10-25 | U50: 34 | V50: -505.88 | W50: 2022-10-25 | X50: 33 | Y50: -505.88 | AD50: 33 | AE50: 2022-10-25 | AF50: 505.88 | AG50: 148.1000833 | AH50: 357.78 | AI50: 88502.27 | AJ50: 10000 | AK50: 2022-10-25 | AL50: 34 | AM50: -505.88 | AN50: 2022-10-25 | AO50: 33 | AP50: -505.88 | AY50: 44859 | BA50: FALSE | BC50: 33 | BD50: 2022-10-25 | BE50: 505.88 | BF50: 148.1257336 | BG50: 357.7542664 | BH50: 88499.2899
B51: 34 | C51: 505.88 | E51: 147.5 | F51: 358.38 | G51: 88143.89 | J51: 34 | K51: 2022-11-25 | O51: 505.88 | P51: 147.5 | Q51: 358.38 | R51: 88143.89 | T51: 2022-11-25 | U51: 35 | V51: -505.88 | W51: 2022-11-25 | X51: 34 | Y51: -505.88 | AD51: 34 | AE51: 2022-11-25 | AF51: 505.88 | AG51: 147.5037833 | AH51: 358.38 | AI51: 88143.89 | AJ51: 10000 | AK51: 2022-11-25 | AL51: 35 | AM51: -505.88 | AN51: 2022-11-25 | AO51: 34 | AP51: -505.88 | AY51: 44890 | BA51: FALSE | BC51: 34 | BD51: 2022-11-25 | BE51: 505.88 | BF51: 147.5293531 | BG51: 358.3506469 | BH51: 88140.93925
B52: 35 | C52: 505.88 | E52: 146.91 | F52: 358.97 | G52: 87784.92 | J52: 35 | K52: 2022-12-25 | O52: 505.88 | P52: 146.91 | Q52: 358.97 | R52: 87784.92 | T52: 2022-12-25 | U52: 36 | V52: -505.88 | W52: 2022-12-25 | X52: 35 | Y52: -505.88 | AD52: 35 | AE52: 2022-12-25 | AF52: 505.88 | AG52: 146.9064833 | AH52: 358.97 | AI52: 87784.92 | AJ52: 10000 | AK52: 2022-12-25 | AL52: 36 | AM52: -505.88 | AN52: 2022-12-25 | AO52: 35 | AP52: -505.88 | AY52: 44920 | BA52: FALSE | BC52: 35 | BD52: 2022-12-25 | BE52: 505.88 | BF52: 146.9319784 | BG52: 358.9480216 | BH52: 87781.99123
B53: 36 | C53: 505.88 | E53: 146.31 | F53: 359.57 | G53: 87425.35 | J53: 36 | K53: 2023-01-25 | O53: 505.88 | P53: 146.31 | Q53: 359.57 | R53: 87425.35 | T53: 2023-01-25 | U53: 37 | V53: -505.88 | W53: 2023-01-25 | X53: 36 | Y53: -505.88 | AD53: 36 | AE53: 2023-01-25 | AF53: 505.88 | AG53: 146.3082 | AH53: 359.57 | AI53: 87425.35 | AJ53: 10000 | AK53: 2023-01-25 | AL53: 37 | AM53: -505.88 | AN53: 2023-01-25 | AO53: 36 | AP53: -505.88 | AY53: 44951 | BA53: FALSE | BC53: 36 | BD53: 2023-01-25 | BE53: 505.88 | BF53: 146.3336078 | BG53: 359.5463922 | BH53: 87422.44484
B54: 37 | C54: 505.88 | E54: 145.71 | F54: 360.17 | G54: 87065.18 | J54: 37 | K54: 2023-02-25 | O54: 505.88 | P54: 145.71 | Q54: 360.17 | R54: 87065.18 | T54: 2023-02-25 | U54: 38 | V54: -505.88 | W54: 2023-02-25 | X54: 37 | Y54: -505.88 | AD54: 37 | AE54: 2023-02-25 | AF54: 505.88 | AG54: 145.7089167 | AH54: 360.17 | AI54: 87065.18 | AJ54: 10000 | AK54: 2023-02-25 | AL54: 38 | AM54: -505.88 | AN54: 2023-02-25 | AO54: 37 | AP54: -505.88 | AY54: 44982 | BA54: FALSE | BC54: 37 | BD54: 2023-02-25 | BE54: 505.88 | BF54: 145.7342398 | BG54: 360.1457602 | BH54: 87062.29908
B55: 38 | C55: 505.88 | E55: 145.11 | F55: 360.77 | G55: 86704.41 | J55: 38 | K55: 2023-03-25 | O55: 505.88 | P55: 145.11 | Q55: 360.77 | R55: 86704.41 | T55: 2023-03-25 | U55: 39 | V55: -505.88 | W55: 2023-03-25 | X55: 38 | Y55: -505.88 | AD55: 38 | AE55: 2023-03-25 | AF55: 505.88 | AG55: 145.1086333 | AH55: 360.77 | AI55: 86704.41 | AJ55: 10000 | AK55: 2023-03-25 | AL55: 39 | AM55: -505.88 | AN55: 2023-03-25 | AO55: 38 | AP55: -505.88 | AY55: 45010 | BA55: FALSE | BC55: 38 | BD55: 2023-03-25 | BE55: 505.88 | BF55: 145.1338726 | BG55: 360.7461274 | BH55: 86701.55295
B56: 39 | C56: 505.88 | E56: 144.51 | F56: 361.37 | G56: 86343.04 | J56: 39 | K56: 2023-04-25 | O56: 505.88 | P56: 144.51 | Q56: 361.37 | R56: 86343.04 | T56: 2023-04-25 | U56: 40 | V56: -505.88 | W56: 2023-04-25 | X56: 39 | Y56: -505.88 | AD56: 39 | AE56: 2023-04-25 | AF56: 505.88 | AG56: 144.50735 | AH56: 361.37 | AI56: 86343.04 | AJ56: 10000 | AK56: 2023-04-25 | AL56: 40 | AM56: -505.88 | AN56: 2023-04-25 | AO56: 39 | AP56: -505.88 | AY56: 45041 | BA56: FALSE | BC56: 39 | BD56: 2023-04-25 | BE56: 505.88 | BF56: 144.5325045 | BG56: 361.3474955 | BH56: 86340.20546
B57: 40 | C57: 505.88 | E57: 143.91 | F57: 361.97 | G57: 85981.07 | J57: 40 | K57: 2023-05-25 | O57: 505.88 | P57: 143.91 | Q57: 361.97 | R57: 85981.07 | T57: 2023-05-25 | U57: 41 | V57: -505.88 | W57: 2023-05-25 | X57: 40 | Y57: -505.88 | AD57: 40 | AE57: 2023-05-25 | AF57: 505.88 | AG57: 143.9050667 | AH57: 361.97 | AI57: 85981.07 | AJ57: 10000 | AK57: 2023-05-25 | AL57: 41 | AM57: -505.88 | AN57: 2023-05-25 | AO57: 40 | AP57: -505.88 | AY57: 45071 | BA57: =IF($B57=$C$7,IF(AND($A$7=0,$B57>$C$7),0,IF(AND($A$7=0,$D57=0),$C56,IF(AND($A$7=0,$B57=$B$13),ROUNDDOWN($F57+$E57,2),IF($B57>$B$13,0,IF(AND($A$7=0,$D57<>0),$D57,IF($B57>$B$13,0,IF($B57=$B$13,ROUNDDOWN($F57+$E57,2),ROUND(-PMT($E$13/12,$B$13,$C$13,0,0),2))))))))) -> FALSE | BC57: 40 | BD57: 2023-05-25 | BE57: 505.88 | BF57: 143.930134 | BG57: 361.949866 | BH57: 85978.25559
B58: 41 | C58: 505.88 | E58: 143.3 | F58: 362.58 | G58: 85618.49 | J58: 41 | K58: 2023-06-25 | O58: 505.88 | P58: 143.3 | Q58: 362.58 | R58: 85618.49 | T58: 2023-06-25 | U58: 42 | V58: -505.88 | W58: 2023-06-25 | X58: 41 | Y58: -505.88 | AD58: 41 | AE58: 2023-06-25 | AF58: 505.88 | AG58: 143.3017833 | AH58: 362.58 | AI58: 85618.49 | AJ58: 10000 | AK58: 2023-06-25 | AL58: 42 | AM58: -505.88 | AN58: 2023-06-25 | AO58: 41 | AP58: -505.88 | AY58: 45102 | BA58: =IF($B58=$C$7,IF(AND($A$7=0,$B58>$C$7),0,IF(AND($A$7=0,$D58=0),$C57,IF(AND($A$7=0,$B58=$B$13),ROUNDDOWN($F58+$E58,2),IF($B58>$B$13,0,IF(AND($A$7=0,$D58<>0),$D58,IF($B58>$B$13,0,IF($B58=$B$13,ROUNDDOWN($F58+$E58,2),ROUND(-PMT($E$13/12,$B$13,$C$13,0,0),2))))))))) -> FALSE | BC58: 41 | BD58: 2023-06-25 | BE58: 505.88 | BF58: 143.3267594 | BG58: 362.5532406 | BH58: 85615.70235
B59: 42 | C59: 505.88 | E59: 142.7 | F59: 363.18 | G59: 85255.31 | J59: 42 | K59: 2023-07-25 | O59: 505.88 | P59: 142.7 | Q59: 363.18 | R59: 85255.31 | T59: 2023-07-25 | U59: 43 | V59: -505.88 | W59: 2023-07-25 | X59: 42 | Y59: -505.88 | AD59: 42 | AE59: 2023-07-25 | AF59: 505.88 | AG59: 142.6974833 | AH59: 363.18 | AI59: 85255.31 | AJ59: 10000 | AK59: 2023-07-25 | AL59: 43 | AM59: -505.88 | AN59: 2023-07-25 | AO59: 42 | AP59: -505.88 | AY59: 45132 | BA59: FALSE | BC59: 42 | BD59: 2023-07-25 | BE59: 505.88 | BF59: 142.7223789 | BG59: 363.1576211 | BH59: 85252.54473
B60: 43 | C60: 505.88 | E60: 142.09 | F60: 363.79 | G60: 84891.52 | J60: 43 | K60: 2023-08-25 | O60: 505.88 | P60: 142.09 | Q60: 363.79 | R60: 84891.52 | T60: 2023-08-25 | U60: 44 | V60: -505.88 | W60: 2023-08-25 | X60: 43 | Y60: -505.88 | AD60: 43 | AE60: 2023-08-25 | AF60: 505.88 | AG60: 142.0921833 | AH60: 363.79 | AI60: 84891.52 | AJ60: 10000 | AK60: 2023-08-25 | AL60: 44 | AM60: -505.88 | AN60: 2023-08-25 | AO60: 43 | AP60: -505.88 | AY60: 45163 | BA60: FALSE | BC60: 43 | BD60: 2023-08-25 | BE60: 505.88 | BF60: 142.1169908 | BG60: 363.7630092 | BH60: 84888.78172
B61: 44 | C61: 505.88 | E61: 141.49 | F61: 364.39 | G61: 84527.13 | J61: 44 | K61: 2023-09-25 | O61: 505.88 | P61: 141.49 | Q61: 364.39 | R61: 84527.13 | T61: 2023-09-25 | U61: 45 | V61: -505.88 | W61: 2023-09-25 | X61: 44 | Y61: -505.88 | AD61: 44 | AE61: 2023-09-25 | AF61: 505.88 | AG61: 141.4858667 | AH61: 364.39 | AI61: 84527.13 | AJ61: 10000 | AK61: 2023-09-25 | AL61: 45 | AM61: -505.88 | AN61: 2023-09-25 | AO61: 44 | AP61: -505.88 | AY61: 45194 | BA61: FALSE | BC61: 44 | BD61: 2023-09-25 | BE61: 505.88 | BF61: 141.5105936 | BG61: 364.3694064 | BH61: 84524.41231
B62: 45 | C62: 505.88 | E62: 140.88 | F62: 365 | G62: 84162.13 | J62: 45 | K62: 2023-10-25 | O62: 505.88 | P62: 140.88 | Q62: 365 | R62: 84162.13 | T62: 2023-10-25 | U62: 46 | V62: -505.88 | W62: 2023-10-25 | X62: 45 | Y62: -505.88 | AD62: 45 | AE62: 2023-10-25 | AF62: 505.88 | AG62: 140.87855 | AH62: 365 | AI62: 84162.13 | AJ62: 10000 | AK62: 2023-10-25 | AL62: 46 | AM62: -505.88 | AN62: 2023-10-25 | AO62: 45 | AP62: -505.88 | AY62: 45224 | BA62: FALSE | BC62: 45 | BD62: 2023-10-25 | BE62: 505.88 | BF62: 140.9031856 | BG62: 364.9768144 | BH62: 84159.4355
B63: 46 | C63: 505.88 | E63: 140.27 | F63: 365.61 | G63: 83796.52 | J63: 46 | K63: 2023-11-25 | O63: 505.88 | P63: 140.27 | Q63: 365.61 | R63: 83796.52 | T63: 2023-11-25 | U63: 47 | V63: -505.88 | W63: 2023-11-25 | X63: 46 | Y63: -505.88 | AD63: 46 | AE63: 2023-11-25 | AF63: 505.88 | AG63: 140.2702167 | AH63: 365.61 | AI63: 83796.52 | AJ63: 10000 | AK63: 2023-11-25 | AL63: 47 | AM63: -505.88 | AN63: 2023-11-25 | AO63: 46 | AP63: -505.88 | AY63: 45255 | BA63: FALSE | BC63: 46 | BD63: 2023-11-25 | BE63: 505.88 | BF63: 140.294765 | BG63: 365.585235 | BH63: 83793.85026
B64: 47 | C64: 505.88 | E64: 139.66 | F64: 366.22 | G64: 83430.3 | J64: 47 | K64: 2023-12-25 | O64: 505.88 | P64: 139.66 | Q64: 366.22 | R64: 83430.3 | T64: 2023-12-25 | U64: 48 | V64: -505.88 | W64: 2023-12-25 | X64: 47 | Y64: -505.88 | AD64: 47 | AE64: 2023-12-25 | AF64: 505.88 | AG64: 139.6608667 | AH64: 366.22 | AI64: 83430.3 | AJ64: 10000 | AK64: 2023-12-25 | AL64: 48 | AM64: -505.88 | AN64: 2023-12-25 | AO64: 47 | AP64: -505.88 | AY64: 45285 | BA64: FALSE | BC64: 47 | BD64: 2023-12-25 | BE64: 505.88 | BF64: 139.6853301 | BG64: 366.1946699 | BH64: 83427.65559
B65: 48 | C65: 505.88 | E65: 139.05 | F65: 366.83 | G65: 83063.47 | J65: 48 | K65: 2024-01-25 | O65: 505.88 | P65: 139.05 | Q65: 366.83 | R65: 83063.47 | T65: 2024-01-25 | U65: 49 | V65: -505.88 | W65: 2024-01-25 | X65: 48 | Y65: -505.88 | AD65: 48 | AE65: 2024-01-25 | AF65: 505.88 | AG65: 139.0505 | AH65: 366.83 | AI65: 83063.47 | AJ65: 10000 | AK65: 2024-01-25 | AL65: 49 | AM65: -505.88 | AN65: 2024-01-25 | AO65: 48 | AP65: -505.88 | AY65: 45316 | BA65: FALSE | BC65: 48 | BD65: 2024-01-25 | BE65: 505.88 | BF65: 139.0748793 | BG65: 366.8051207 | BH65: 83060.85047
B66: 49 | C66: 505.88 | E66: 138.44 | F66: 367.44 | G66: 82696.03 | J66: 49 | K66: 2024-02-25 | O66: 505.88 | P66: 138.44 | Q66: 367.44 | R66: 82696.03 | T66: 2024-02-25 | U66: 50 | V66: -505.88 | W66: 2024-02-25 | X66: 49 | Y66: -505.88 | AD66: 49 | AE66: 2024-02-25 | AF66: 505.88 | AG66: 138.4391167 | AH66: 367.44 | AI66: 82696.03 | AJ66: 10000 | AK66: 2024-02-25 | AL66: 50 | AM66: -505.88 | AN66: 2024-02-25 | AO66: 49 | AP66: -505.88 | AY66: 45347 | BA66: FALSE | BC66: 49 | BD66: 2024-02-25 | BE66: 505.88 | BF66: 138.4634108 | BG66: 367.4165892 | BH66: 82693.43388
B67: 50 | C67: 505.88 | E67: 137.83 | F67: 368.05 | G67: 82327.98 | J67: 50 | K67: 2024-03-25 | O67: 505.88 | P67: 137.83 | Q67: 368.05 | R67: 82327.98 | T67: 2024-03-25 | U67: 51 | V67: -505.88 | W67: 2024-03-25 | X67: 50 | Y67: -505.88 | AD67: 50 | AE67: 2024-03-25 | AF67: 505.88 | AG67: 137.8267167 | AH67: 368.05 | AI67: 82327.98 | AJ67: 10000 | AK67: 2024-03-25 | AL67: 51 | AM67: -505.88 | AN67: 2024-03-25 | AO67: 50 | AP67: -505.88 | AY67: 45376 | BA67: FALSE | BC67: 50 | BD67: 2024-03-25 | BE67: 505.88 | BF67: 137.8509231 | BG67: 368.0290769 | BH67: 82325.40481
B68: 51 | C68: 505.88 | E68: 137.21 | F68: 368.67 | G68: 81959.31 | J68: 51 | K68: 2024-04-25 | O68: 505.88 | P68: 137.21 | Q68: 368.67 | R68: 81959.31 | T68: 2024-04-25 | U68: 52 | V68: -505.88 | W68: 2024-04-25 | X68: 51 | Y68: -505.88 | AD68: 51 | AE68: 2024-04-25 | AF68: 505.88 | AG68: 137.2133 | AH68: 368.67 | AI68: 81959.31 | AJ68: 10000 | AK68: 2024-04-25 | AL68: 52 | AM68: -505.88 | AN68: 2024-04-25 | AO68: 51 | AP68: -505.88 | AY68: 45407 | BA68: FALSE | BC68: 51 | BD68: 2024-04-25 | BE68: 505.88 | BF68: 137.2374143 | BG68: 368.6425857 | BH68: 81956.76222
B69: 52 | C69: 505.88 | E69: 136.6 | F69: 369.28 | G69: 81590.03 | J69: 52 | K69: 2024-05-25 | O69: 505.88 | P69: 136.6 | Q69: 369.28 | R69: 81590.03 | T69: 2024-05-25 | U69: 53 | V69: -505.88 | W69: 2024-05-25 | X69: 52 | Y69: -505.88 | AD69: 52 | AE69: 2024-05-25 | AF69: 505.88 | AG69: 136.59885 | AH69: 369.28 | AI69: 81590.03 | AJ69: 10000 | AK69: 2024-05-25 | AL69: 53 | AM69: -505.88 | AN69: 2024-05-25 | AO69: 52 | AP69: -505.88 | AY69: 45437 | BA69: FALSE | BC69: 52 | BD69: 2024-05-25 | BE69: 505.88 | BF69: 136.6228828 | BG69: 369.2571172 | BH69: 81587.50511
B70: 53 | C70: 505.88 | E70: 135.98 | F70: 369.9 | G70: 81220.13 | J70: 53 | K70: 2024-06-25 | O70: 505.88 | P70: 135.98 | Q70: 369.9 | R70: 81220.13 | T70: 2024-06-25 | U70: 54 | V70: -505.88 | W70: 2024-06-25 | X70: 53 | Y70: -505.88 | AD70: 53 | AE70: 2024-06-25 | AF70: 505.88 | AG70: 135.9833833 | AH70: 369.9 | AI70: 81220.13 | AJ70: 10000 | AK70: 2024-06-25 | AL70: 54 | AM70: -505.88 | AN70: 2024-06-25 | AO70: 53 | AP70: -505.88 | AY70: 45468 | BA70: FALSE | BC70: 53 | BD70: 2024-06-25 | BE70: 505.88 | BF70: 136.0073269 | BG70: 369.8726731 | BH70: 81217.63243
B71: 54 | C71: 505.88 | E71: 135.37 | F71: 370.51 | G71: 80849.62 | J71: 54 | K71: 2024-07-25 | O71: 505.88 | P71: 135.37 | Q71: 370.51 | R71: 80849.62 | T71: 2024-07-25 | U71: 55 | V71: -505.88 | W71: 2024-07-25 | X71: 54 | Y71: -505.88 | AD71: 54 | AE71: 2024-07-25 | AF71: 505.88 | AG71: 135.3668833 | AH71: 370.51 | AI71: 80849.62 | AJ71: 10000 | AK71: 2024-07-25 | AL71: 55 | AM71: -505.88 | AN71: 2024-07-25 | AO71: 54 | AP71: -505.88 | AY71: 45498 | BA71: FALSE | BC71: 54 | BD71: 2024-07-25 | BE71: 505.88 | BF71: 135.3907448 | BG71: 370.4892552 | BH71: 80847.14318
B72: 55 | C72: 505.88 | E72: 134.75 | F72: 371.13 | G72: 80478.49 | J72: 55 | K72: 2024-08-25 | O72: 505.88 | P72: 134.75 | Q72: 371.13 | R72: 80478.49 | T72: 2024-08-25 | U72: 56 | V72: -505.88 | W72: 2024-08-25 | X72: 55 | Y72: -505.88 | AD72: 55 | AE72: 2024-08-25 | AF72: 505.88 | AG72: 134.7493667 | AH72: 371.13 | AI72: 80478.49 | AJ72: 10000 | AK72: 2024-08-25 | AL72: 56 | AM72: -505.88 | AN72: 2024-08-25 | AO72: 55 | AP72: -505.88 | AY72: 45529 | BA72: FALSE | BC72: 55 | BD72: 2024-08-25 | BE72: 505.88 | BF72: 134.7731348 | BG72: 371.1068652 | BH72: 80476.03631
B73: 56 | C73: 505.88 | E73: 134.13 | F73: 371.75 | G73: 80106.74 | J73: 56 | K73: 2024-09-25 | O73: 505.88 | P73: 134.13 | Q73: 371.75 | R73: 80106.74 | T73: 2024-09-25 | U73: 57 | V73: -505.88 | W73: 2024-09-25 | X73: 56 | Y73: -505.88 | AD73: 56 | AE73: 2024-09-25 | AF73: 505.88 | AG73: 134.1308167 | AH73: 371.75 | AI73: 80106.74 | AJ73: 10000 | AK73: 2024-09-25 | AL73: 57 | AM73: -505.88 | AN73: 2024-09-25 | AO73: 56 | AP73: -505.88 | AY73: 45560 | BA73: FALSE | BC73: 56 | BD73: 2024-09-25 | BE73: 505.88 | BF73: 134.1544954 | BG73: 371.7255046 | BH73: 80104.31081
B74: 57 | C74: 505.88 | E74: 133.51 | F74: 372.37 | G74: 79734.37 | J74: 57 | K74: 2024-10-25 | O74: 505.88 | P74: 133.51 | Q74: 372.37 | R74: 79734.37 | T74: 2024-10-25 | U74: 58 | V74: -505.88 | W74: 2024-10-25 | X74: 57 | Y74: -505.88 | AD74: 57 | AE74: 2024-10-25 | AF74: 505.88 | AG74: 133.5112333 | AH74: 372.37 | AI74: 79734.37 | AJ74: 10000 | AK74: 2024-10-25 | AL74: 58 | AM74: -505.88 | AN74: 2024-10-25 | AO74: 57 | AP74: -505.88 | AY74: 45590 | BA74: FALSE | BC74: 57 | BD74: 2024-10-25 | BE74: 505.88 | BF74: 133.5348246 | BG74: 372.3451754 | BH74: 79731.96563
B75: 58 | C75: 505.88 | E75: 132.89 | F75: 372.99 | G75: 79361.38 | J75: 58 | K75: 2024-11-25 | O75: 505.88 | P75: 132.89 | Q75: 372.99 | R75: 79361.38 | T75: 2024-11-25 | U75: 59 | V75: -505.88 | W75: 2024-11-25 | X75: 58 | Y75: -505.88 | AD75: 58 | AE75: 2024-11-25 | AF75: 505.88 | AG75: 132.8906167 | AH75: 372.99 | AI75: 79361.38 | AJ75: 10000 | AK75: 2024-11-25 | AL75: 59 | AM75: -505.88 | AN75: 2024-11-25 | AO75: 58 | AP75: -505.88 | AY75: 45621 | BA75: FALSE | BC75: 58 | BD75: 2024-11-25 | BE75: 505.88 | BF75: 132.9141208 | BG75: 372.9658792 | BH75: 79358.99975
B76: 59 | C76: 505.88 | E76: 132.27 | F76: 373.61 | G76: 78987.77 | J76: 59 | K76: 2024-12-25 | O76: 505.88 | P76: 132.27 | Q76: 373.61 | R76: 78987.77 | T76: 2024-12-25 | U76: 60 | V76: -505.88 | W76: 2024-12-25 | X76: 59 | Y76: -505.88 | AD76: 59 | AE76: 2024-12-25 | AF76: 505.88 | AG76: 132.2689667 | AH76: 373.61 | AI76: 78987.77 | AJ76: 10000 | AK76: 2024-12-25 | AL76: 60 | AM76: -505.88 | AN76: 2024-12-25 | AO76: 59 | AP76: -505.88 | AY76: 45651 | BA76: FALSE | BC76: 59 | BD76: 2024-12-25 | BE76: 505.88 | BF76: 132.2923823 | BG76: 373.5876177 | BH76: 78985.41213
B77: 60 | C77: 505.88 | E77: 131.65 | F77: 374.23 | G77: 78613.54 | J77: 60 | K77: 2025-01-25 | O77: 505.88 | P77: 131.65 | Q77: 374.23 | R77: 78613.54 | T77: 2025-01-25 | U77: 61 | V77: -505.88 | W77: 2025-01-25 | X77: 60 | Y77: -505.88 | AD77: 60 | AE77: 2025-01-25 | AF77: 505.88 | AG77: 131.6462833 | AH77: 374.23 | AI77: 78613.54 | AJ77: 10000 | AK77: 2025-01-25 | AL77: 61 | AM77: -505.88 | AN77: 2025-01-25 | AO77: 60 | AP77: -505.88 | AY77: 45682 | BA77: FALSE | BC77: 60 | BD77: 2025-01-25 | BE77: 505.88 | BF77: 131.6696074 | BG77: 374.2103926 | BH77: 78611.20174
B78: 61 | C78: 505.88 | E78: 131.02 | F78: 374.86 | G78: 78238.68 | J78: 61 | K78: 2025-02-25 | O78: 505.88 | P78: 131.02 | Q78: 374.86 | R78: 78238.68 | T78: 2025-02-25 | U78: 62 | V78: -505.88 | W78: 2025-02-25 | X78: 61 | Y78: -505.88 | AD78: 61 | AE78: 2025-02-25 | AF78: 505.88 | AG78: 131.0225667 | AH78: 374.86 | AI78: 78238.68 | AJ78: 10000 | AK78: 2025-02-25 | AL78: 62 | AM78: -505.88 | AN78: 2025-02-25 | AO78: 61 | AP78: -505.88 | AY78: 45713 | BA78: FALSE | BC78: 61 | BD78: 2025-02-25 | BE78: 505.88 | BF78: 131.0457943 | BG78: 374.8342057 | BH78: 78236.36754
B79: 62 | C79: 505.88 | E79: 130.4 | F79: 375.48 | G79: 77863.2 | J79: 62 | K79: 2025-03-25 | O79: 505.88 | P79: 130.4 | Q79: 375.48 | R79: 77863.2 | T79: 2025-03-25 | U79: 63 | V79: -505.88 | W79: 2025-03-25 | X79: 62 | Y79: -505.88 | AD79: 62 | AE79: 2025-03-25 | AF79: 505.88 | AG79: 130.3978 | AH79: 375.48 | AI79: 77863.2 | AJ79: 10000 | AK79: 2025-03-25 | AL79: 63 | AM79: -505.88 | AN79: 2025-03-25 | AO79: 62 | AP79: -505.88 | AY79: 45741 | BA79: FALSE | BC79: 62 | BD79: 2025-03-25 | BE79: 505.88 | BF79: 130.4209413 | BG79: 375.4590587 | BH79: 77860.90848
B80: 63 | C80: 505.88 | E80: 129.77 | F80: 376.11 | G80: 77487.09 | J80: 63 | K80: 2025-04-25 | O80: 505.88 | P80: 129.77 | Q80: 376.11 | R80: 77487.09 | T80: 2025-04-25 | U80: 64 | V80: -505.88 | W80: 2025-04-25 | X80: 63 | Y80: -505.88 | AD80: =J80 -> 63 | AE80: =K80 -> 2025-04-25 | AF80: 505.88 | AG80: 129.772 | AH80: 376.11 | AI80: 77487.09 | AJ80: 10000 | AK80: =T80 -> 2025-04-25 | AL80: =U80 -> 64 | AM80: -505.88 | AN80: 2025-04-25 | AO80: 63 | AP80: -505.88 | AY80: 45772 | BA80: FALSE | BC80: =AD80 -> 63 | BD80: =AE80 -> 2025-04-25 | BE80: 505.88 | BF80: 129.7950466 | BG80: 376.0849534 | BH80: 77484.82352
B81: 64 | C81: 505.88 | E81: 129.15 | F81: 376.73 | G81: 77110.36 | J81: 64 | K81: 2025-05-25 | O81: 505.88 | P81: 129.15 | Q81: 376.73 | R81: 77110.36 | T81: 2025-05-25 | U81: 65 | V81: -505.88 | W81: 2025-05-25 | X81: 64 | Y81: -505.88 | AD81: 64 | AE81: 2025-05-25 | AF81: 505.88 | AG81: 129.14515 | AH81: 376.73 | AI81: 77110.36 | AJ81: =IF(AD81<>$C$7,10000,AI451) -> 10000 | AK81: 2025-05-25 | AL81: 65 | AM81: -505.88 | AN81: 2025-05-25 | AO81: 64 | AP81: -505.88 | AY81: 45802 | BA81: FALSE | BC81: 64 | BD81: 2025-05-25 | BE81: 505.88 | BF81: 129.1681086 | BG81: 376.7118914 | BH81: 77108.11163
B82: 65 | C82: 505.88 | E82: 128.52 | F82: =IF(B82>$B$13,0,IF(B82=$B$13,G81,C82-E82)) -> 377.36 | G82: =IF(B82>$B$13,0,G81-F82) -> 76733 | J82: 65 | K82: 2025-06-25 | O82: 505.88 | P82: 128.52 | Q82: 377.36 | R82: 76733 | T82: =EDATE(T81,1) -> 2025-06-25 | U82: 66 | V82: =IF(U82>$V$11,0,IF($H$7=1,-O83,-O82)) -> -505.88 | W82: 2025-06-25 | X82: 65 | Y82: =IF(X82>$Y$11,0,IF($H$7=1,-O82,V82)) -> -505.88 | AD82: 65 | AE82: 2025-06-25 | AF82: 505.88 | AG82: 128.5172667 | AH82: 377.36 | AI82: 76733 | AJ82: 10000 | AK82: 2025-06-25 | AL82: 66 | AM82: =IF(AL82>$V$11,0,IF($H$7=1,-AF83,-AF82)) -> -505.88 | AN82: 2025-06-25 | AO82: 65 | AP82: =IF(AO82>$Y$11,0,IF($H$7=1,-AF82,AM82)) -> -505.88 | AT82: =IF($B82=$C$7,B82,"") ->  | AU82: =IF($B82=$C$7,C82,"") ->  | AV82: =IF($B82=$C$7,E82,"") ->  | AW82: =IF($B82=$C$7,F82,"") ->  | AX82: =IF($B82=$C$7,G82,"") ->  | AY82: =K82 -> 45833 | BA82: FALSE | BC82: 65 | BD82: 2025-06-25 | BE82: =AF82 -> 505.88 | BF82: 128.5401255 | BG82: =IF(BC82=$C$7,BH81,BE82-BF82) -> 377.3398745 | BH82: 76730.77176
B83: 66 | C83: =IF(AND($A$7=0,$B83>$C$7),0,IF(AND($A$7=0,$B83=$C$7),ROUND(($F83+$E83),2),IF(AND($A$7=0,$D83=0),ROUND($C82,2),IF(AND($A$7=0,$B83=$B$13),ROUND($F83+$E83,2),IF($B83>$B$13,0,IF(AND($A$7=0,$D83<>0),ROUND($D83,2),IF($B83>$B$13,0,IF($B83=$B$13,ROUND($F83+$E83,2),ROUND(-PMT($E$13/12,$B$13,$C$13,0,0),2))))))))) -> 505.88 | E83: =IF(B83>$B$13,0,ROUND(G82*$E$13/12,2)) -> 127.89 | F83: 377.99 | G83: 76355.01 | J83: 66 | K83: 2025-07-25 | O83: 505.88 | P83: 127.89 | Q83: =IF($P$7="Oui",O83-P83,F83) -> 377.99 | R83: =IF(J83>$B$13,0,R82-Q83) -> 76355.01 | T83: 2025-07-25 | U83: 67 | V83: -505.88 | W83: =EDATE(W82,1) -> 2025-07-25 | X83: 66 | Y83: -505.88 | AD83: 66 | AE83: 2025-07-25 | AF83: 505.88 | AG83: 127.8883333 | AH83: 377.99 | AI83: =AI82-AH83 -> 76355.01 | AJ83: 10000 | AK83: 2025-07-25 | AL83: 67 | AM83: -505.88 | AN83: =EDATE(AN82,1) -> 2025-07-25 | AO83: 66 | AP83: -505.88 | AY83: 45863 | BA83: FALSE | BC83: 66 | BD83: 2025-07-25 | BE83: 505.88 | BF83: 127.9110955 | BG83: 377.9689045 | BH83: =BH82-BG83 -> 76352.80285
B84: 67 | C84: 505.88 | E84: 127.26 | F84: 378.62 | G84: 75976.39 | J84: 67 | K84: =EDATE(K83,1) -> 2025-08-25 | O84: =IF(J84>$C$7,0,IF($P$7="Oui",IF(J84=$C$7,ROUND(Q84+P84,2),$AE$14),ROUND(C84,2))) -> 505.88 | P84: =IF($P$7="Oui",R83*$E$7/12,ROUND(R83*$E$7/12,2)) -> 127.26 | Q84: 378.62 | R84: 75976.39 | T84: 2025-08-25 | U84: 68 | V84: -505.88 | W84: 2025-08-25 | X84: 67 | Y84: -505.88 | AD84: 67 | AE84: 2025-08-25 | AF84: =IF(AD84>$C$7,0,IF($P$7="Oui",IF(AD84=$C$7,AH84+AG84,$AE$14),O84)) -> 505.88 | AG84: =IF($P$7="Oui",AI83*$AF$13/12,AI83*$E$7/12) -> 127.25835 | AH84: =IF($P$7="Oui",IF(AD84=$C$7,AI83,AF84-AG84),Q84) -> 378.62 | AI84: 75976.39 | AJ84: 10000 | AK84: 2025-08-25 | AL84: 68 | AM84: -505.88 | AN84: 2025-08-25 | AO84: 67 | AP84: -505.88 | AY84: 45894 | BA84: FALSE | BC84: 67 | BD84: 2025-08-25 | BE84: 505.88 | BF84: =BH83*$BE$13/12 -> 127.2810169 | BG84: 378.5989831 | BH84: 75974.20387
B85: 68 | C85: 505.88 | E85: 126.63 | F85: 379.25 | G85: 75597.14 | J85: 68 | K85: 2025-09-25 | O85: 505.88 | P85: 126.63 | Q85: 379.25 | R85: 75597.14 | T85: 2025-09-25 | U85: 69 | V85: -505.88 | W85: 2025-09-25 | X85: 68 | Y85: -505.88 | AD85: 68 | AE85: 2025-09-25 | AF85: 505.88 | AG85: 126.6273167 | AH85: 379.25 | AI85: 75597.14 | AJ85: 10000 | AK85: 2025-09-25 | AL85: 69 | AM85: -505.88 | AN85: 2025-09-25 | AO85: 68 | AP85: -505.88 | AY85: 45925 | BA85: FALSE | BC85: 68 | BD85: 2025-09-25 | BE85: 505.88 | BF85: 126.6498879 | BG85: 379.2301121 | BH85: 75594.97376
B86: 69 | C86: 505.88 | E86: 126 | F86: 379.88 | G86: 75217.26 | J86: 69 | K86: 2025-10-25 | O86: 505.88 | P86: 126 | Q86: 379.88 | R86: 75217.26 | T86: 2025-10-25 | U86: 70 | V86: -505.88 | W86: 2025-10-25 | X86: 69 | Y86: -505.88 | AD86: 69 | AE86: 2025-10-25 | AF86: 505.88 | AG86: 125.9952333 | AH86: 379.88 | AI86: 75217.26 | AJ86: 10000 | AK86: 2025-10-25 | AL86: 70 | AM86: -505.88 | AN86: 2025-10-25 | AO86: 69 | AP86: -505.88 | AY86: 45955 | BA86: FALSE | BC86: 69 | BD86: 2025-10-25 | BE86: 505.88 | BF86: 126.0177069 | BG86: 379.8622931 | BH86: 75215.11147
B87: 70 | C87: 505.88 | E87: 125.36 | F87: 380.52 | G87: 74836.74 | J87: 70 | K87: 2025-11-25 | O87: 505.88 | P87: 125.36 | Q87: 380.52 | R87: 74836.74 | T87: 2025-11-25 | U87: 71 | V87: -505.88 | W87: 2025-11-25 | X87: 70 | Y87: -505.88 | AD87: 70 | AE87: 2025-11-25 | AF87: 505.88 | AG87: =IF($P$7="Oui",AI86*$AF$13/12,AI86*$E$7/12) -> 125.3621 | AH87: 380.52 | AI87: 74836.74 | AJ87: 10000 | AK87: 2025-11-25 | AL87: 71 | AM87: -505.88 | AN87: 2025-11-25 | AO87: 70 | AP87: -505.88 | AY87: 45986 | BA87: FALSE | BC87: 70 | BD87: 2025-11-25 | BE87: =AF87 -> 505.88 | BF87: 125.384472 | BG87: =IF(BC87=$C$7,BH86,BE87-BF87) -> 380.495528 | BH87: 74834.61594
B88: 71 | C88: 505.88 | E88: 124.73 | F88: 381.15 | G88: 74455.59 | J88: 71 | K88: 2025-12-25 | O88: 505.88 | P88: 124.73 | Q88: 381.15 | R88: 74455.59 | T88: 2025-12-25 | U88: 72 | V88: -505.88 | W88: 2025-12-25 | X88: 71 | Y88: -505.88 | AD88: 71 | AE88: 2025-12-25 | AF88: 505.88 | AG88: 124.7279 | AH88: 381.15 | AI88: 74455.59 | AJ88: 10000 | AK88: 2025-12-25 | AL88: 72 | AM88: -505.88 | AN88: 2025-12-25 | AO88: 71 | AP88: -505.88 | AY88: 46016 | BA88: FALSE | BC88: 71 | BD88: 2025-12-25 | BE88: =AF88 -> 505.88 | BF88: 124.7501815 | BG88: =IF(BC88=$C$7,BH87,BE88-BF88) -> 381.1298185 | BH88: 74453.48612
B89: 72 | C89: 505.88 | E89: 124.09 | F89: 381.79 | G89: 74073.8 | J89: 72 | K89: 2026-01-25 | O89: 505.88 | P89: 124.09 | Q89: 381.79 | R89: 74073.8 | T89: 2026-01-25 | U89: 73 | V89: -505.88 | W89: 2026-01-25 | X89: 72 | Y89: -505.88 | AD89: 72 | AE89: 2026-01-25 | AF89: 505.88 | AG89: 124.09265 | AH89: 381.79 | AI89: 74073.8 | AJ89: 10000 | AK89: 2026-01-25 | AL89: 73 | AM89: -505.88 | AN89: 2026-01-25 | AO89: 72 | AP89: -505.88 | AY89: 46047 | BA89: FALSE | BC89: 72 | BD89: 2026-01-25 | BE89: 505.88 | BF89: 124.1148336 | BG89: 381.7651664 | BH89: 74071.72095
B90: 73 | C90: 505.88 | E90: 123.46 | F90: 382.42 | G90: 73691.38 | J90: 73 | K90: 2026-02-25 | O90: 505.88 | P90: 123.46 | Q90: 382.42 | R90: 73691.38 | T90: 2026-02-25 | U90: 74 | V90: -505.88 | W90: 2026-02-25 | X90: 73 | Y90: -505.88 | AD90: 73 | AE90: 2026-02-25 | AF90: 505.88 | AG90: 123.4563333 | AH90: 382.42 | AI90: 73691.38 | AJ90: 10000 | AK90: 2026-02-25 | AL90: 74 | AM90: -505.88 | AN90: 2026-02-25 | AO90: 73 | AP90: -505.88 | AY90: 46078 | BA90: FALSE | BC90: 73 | BD90: 2026-02-25 | BE90: 505.88 | BF90: 123.4784266 | BG90: 382.4015734 | BH90: 73689.31938
B91: 74 | C91: 505.88 | E91: 122.82 | F91: 383.06 | G91: 73308.32 | J91: 74 | K91: 2026-03-25 | O91: 505.88 | P91: 122.82 | Q91: 383.06 | R91: 73308.32 | T91: 2026-03-25 | U91: 75 | V91: -505.88 | W91: 2026-03-25 | X91: 74 | Y91: -505.88 | AD91: 74 | AE91: 2026-03-25 | AF91: 505.88 | AG91: 122.8189667 | AH91: 383.06 | AI91: 73308.32 | AJ91: 10000 | AK91: 2026-03-25 | AL91: 75 | AM91: -505.88 | AN91: 2026-03-25 | AO91: 74 | AP91: -505.88 | AY91: 46106 | BA91: FALSE | BC91: 74 | BD91: 2026-03-25 | BE91: 505.88 | BF91: 122.8409587 | BG91: 383.0390413 | BH91: 73306.28034
B92: 75 | C92: 505.88 | E92: 122.18 | F92: 383.7 | G92: 72924.62 | J92: 75 | K92: 2026-04-25 | O92: 505.88 | P92: 122.18 | Q92: 383.7 | R92: 72924.62 | T92: 2026-04-25 | U92: 76 | V92: -505.88 | W92: 2026-04-25 | X92: 75 | Y92: -505.88 | AD92: 75 | AE92: 2026-04-25 | AF92: 505.88 | AG92: 122.1805333 | AH92: 383.7 | AI92: 72924.62 | AJ92: 10000 | AK92: 2026-04-25 | AL92: 76 | AM92: -505.88 | AN92: 2026-04-25 | AO92: 75 | AP92: -505.88 | AY92: 46137 | BA92: FALSE | BC92: 75 | BD92: 2026-04-25 | BE92: 505.88 | BF92: 122.2024281 | BG92: 383.6775719 | BH92: 72922.60277
B93: 76 | C93: 505.88 | E93: 121.54 | F93: 384.34 | G93: 72540.28 | J93: 76 | K93: 2026-05-25 | O93: 505.88 | P93: 121.54 | Q93: 384.34 | R93: 72540.28 | T93: 2026-05-25 | U93: 77 | V93: -505.88 | W93: 2026-05-25 | X93: 76 | Y93: -505.88 | AD93: 76 | AE93: 2026-05-25 | AF93: 505.88 | AG93: 121.5410333 | AH93: 384.34 | AI93: 72540.28 | AJ93: 10000 | AK93: 2026-05-25 | AL93: 77 | AM93: -505.88 | AN93: 2026-05-25 | AO93: 76 | AP93: -505.88 | AY93: 46167 | BA93: FALSE | BC93: 76 | BD93: 2026-05-25 | BE93: 505.88 | BF93: 121.5628331 | BG93: 384.3171669 | BH93: 72538.2856
B94: 77 | C94: 505.88 | E94: 120.9 | F94: 384.98 | G94: 72155.3 | J94: 77 | K94: 2026-06-25 | O94: 505.88 | P94: 120.9 | Q94: 384.98 | R94: 72155.3 | T94: 2026-06-25 | U94: 78 | V94: -505.88 | W94: 2026-06-25 | X94: 77 | Y94: -505.88 | AD94: 77 | AE94: 2026-06-25 | AF94: 505.88 | AG94: 120.9004667 | AH94: 384.98 | AI94: 72155.3 | AJ94: 10000 | AK94: 2026-06-25 | AL94: 78 | AM94: -505.88 | AN94: 2026-06-25 | AO94: 77 | AP94: -505.88 | AY94: 46198 | BA94: FALSE | BC94: 77 | BD94: 2026-06-25 | BE94: 505.88 | BF94: 120.9221719 | BG94: 384.9578281 | BH94: 72153.32777
B95: 78 | C95: 505.88 | E95: 120.26 | F95: 385.62 | G95: 71769.68 | J95: 78 | K95: 2026-07-25 | O95: 505.88 | P95: 120.26 | Q95: 385.62 | R95: 71769.68 | T95: 2026-07-25 | U95: 79 | V95: -505.88 | W95: 2026-07-25 | X95: 78 | Y95: -505.88 | AD95: 78 | AE95: 2026-07-25 | AF95: 505.88 | AG95: 120.2588333 | AH95: 385.62 | AI95: 71769.68 | AJ95: 10000 | AK95: 2026-07-25 | AL95: 79 | AM95: -505.88 | AN95: 2026-07-25 | AO95: 78 | AP95: -505.88 | AY95: 46228 | BA95: FALSE | BC95: 78 | BD95: 2026-07-25 | BE95: 505.88 | BF95: 120.2804427 | BG95: 385.5995573 | BH95: 71767.72821
B96: 79 | C96: 505.88 | E96: 119.62 | F96: 386.26 | G96: 71383.42 | J96: 79 | K96: 2026-08-25 | O96: 505.88 | P96: 119.62 | Q96: 386.26 | R96: 71383.42 | T96: 2026-08-25 | U96: 80 | V96: -505.88 | W96: 2026-08-25 | X96: 79 | Y96: -505.88 | AD96: 79 | AE96: 2026-08-25 | AF96: 505.88 | AG96: 119.6161333 | AH96: 386.26 | AI96: 71383.42 | AJ96: 10000 | AK96: 2026-08-25 | AL96: 80 | AM96: -505.88 | AN96: 2026-08-25 | AO96: 79 | AP96: -505.88 | AY96: 46259 | BA96: FALSE | BC96: 79 | BD96: 2026-08-25 | BE96: 505.88 | BF96: 119.6376437 | BG96: 386.2423563 | BH96: 71381.48586
B97: 80 | C97: 505.88 | E97: 118.97 | F97: 386.91 | G97: 70996.51 | J97: 80 | K97: 2026-09-25 | O97: 505.88 | P97: 118.97 | Q97: 386.91 | R97: 70996.51 | T97: 2026-09-25 | U97: 81 | V97: -505.88 | W97: 2026-09-25 | X97: 80 | Y97: -505.88 | AD97: 80 | AE97: 2026-09-25 | AF97: 505.88 | AG97: 118.9723667 | AH97: 386.91 | AI97: 70996.51 | AJ97: 10000 | AK97: 2026-09-25 | AL97: 81 | AM97: -505.88 | AN97: 2026-09-25 | AO97: 80 | AP97: -505.88 | AY97: 46290 | BA97: FALSE | BC97: 80 | BD97: 2026-09-25 | BE97: 505.88 | BF97: 118.9937732 | BG97: 386.8862268 | BH97: 70994.59963
B98: 81 | C98: 505.88 | E98: 118.33 | F98: 387.55 | G98: 70608.96 | J98: 81 | K98: 2026-10-25 | O98: 505.88 | P98: 118.33 | Q98: 387.55 | R98: 70608.96 | T98: 2026-10-25 | U98: 82 | V98: -505.88 | W98: 2026-10-25 | X98: 81 | Y98: -505.88 | AD98: 81 | AE98: 2026-10-25 | AF98: 505.88 | AG98: 118.3275167 | AH98: 387.55 | AI98: 70608.96 | AJ98: 10000 | AK98: 2026-10-25 | AL98: 82 | AM98: -505.88 | AN98: 2026-10-25 | AO98: 81 | AP98: -505.88 | AY98: 46320 | BA98: FALSE | BC98: 81 | BD98: 2026-10-25 | BE98: 505.88 | BF98: 118.3488293 | BG98: 387.5311707 | BH98: 70607.06846
B99: 82 | C99: 505.88 | E99: 117.68 | F99: 388.2 | G99: 70220.76 | J99: 82 | K99: 2026-11-25 | O99: 505.88 | P99: 117.68 | Q99: 388.2 | R99: 70220.76 | T99: 2026-11-25 | U99: 83 | V99: -505.88 | W99: 2026-11-25 | X99: 82 | Y99: -505.88 | AD99: 82 | AE99: 2026-11-25 | AF99: 505.88 | AG99: 117.6816 | AH99: 388.2 | AI99: 70220.76 | AJ99: 10000 | AK99: 2026-11-25 | AL99: 83 | AM99: -505.88 | AN99: 2026-11-25 | AO99: 82 | AP99: -505.88 | AY99: 46351 | BA99: FALSE | BC99: 82 | BD99: 2026-11-25 | BE99: 505.88 | BF99: 117.7028103 | BG99: 388.1771897 | BH99: 70218.89127
B100: 83 | C100: 505.88 | E100: 117.03 | F100: 388.85 | G100: 69831.91 | J100: 83 | K100: 2026-12-25 | O100: 505.88 | P100: 117.03 | Q100: 388.85 | R100: 69831.91 | T100: 2026-12-25 | U100: 84 | V100: -505.88 | W100: 2026-12-25 | X100: 83 | Y100: -505.88 | AD100: 83 | AE100: 2026-12-25 | AF100: 505.88 | AG100: 117.0346 | AH100: 388.85 | AI100: 69831.91 | AJ100: 10000 | AK100: 2026-12-25 | AL100: 84 | AM100: -505.88 | AN100: 2026-12-25 | AO100: 83 | AP100: -505.88 | AY100: 46381 | BA100: FALSE | BC100: 83 | BD100: 2026-12-25 | BE100: 505.88 | BF100: 117.0557144 | BG100: 388.8242856 | BH100: 69830.06698
B101: 84 | C101: 505.88 | E101: 116.39 | F101: 389.49 | G101: 69442.42 | J101: 84 | K101: 2027-01-25 | O101: 505.88 | P101: 116.39 | Q101: 389.49 | R101: 69442.42 | T101: 2027-01-25 | U101: 85 | V101: -505.88 | W101: 2027-01-25 | X101: 84 | Y101: -505.88 | AD101: 84 | AE101: 2027-01-25 | AF101: 505.88 | AG101: 116.3865167 | AH101: 389.49 | AI101: 69442.42 | AJ101: 10000 | AK101: 2027-01-25 | AL101: 85 | AM101: -505.88 | AN101: 2027-01-25 | AO101: 84 | AP101: -505.88 | AY101: 46412 | BA101: FALSE | BC101: 84 | BD101: 2027-01-25 | BE101: 505.88 | BF101: 116.4075398 | BG101: 389.4724602 | BH101: 69440.59452
B102: 85 | C102: 505.88 | E102: 115.74 | F102: 390.14 | G102: 69052.28 | J102: 85 | K102: 2027-02-25 | O102: 505.88 | P102: 115.74 | Q102: 390.14 | R102: 69052.28 | T102: 2027-02-25 | U102: 86 | V102: -505.88 | W102: 2027-02-25 | X102: 85 | Y102: -505.88 | AD102: 85 | AE102: 2027-02-25 | AF102: 505.88 | AG102: 115.7373667 | AH102: 390.14 | AI102: 69052.28 | AJ102: 10000 | AK102: 2027-02-25 | AL102: 86 | AM102: -505.88 | AN102: 2027-02-25 | AO102: 85 | AP102: -505.88 | AY102: 46443 | BA102: FALSE | BC102: 85 | BD102: 2027-02-25 | BE102: 505.88 | BF102: 115.7582846 | BG102: 390.1217154 | BH102: 69050.47281
B103: 86 | C103: 505.88 | E103: 115.09 | F103: 390.79 | G103: 68661.49 | J103: 86 | K103: 2027-03-25 | O103: 505.88 | P103: 115.09 | Q103: 390.79 | R103: 68661.49 | T103: 2027-03-25 | U103: 87 | V103: -505.88 | W103: 2027-03-25 | X103: 86 | Y103: -505.88 | AD103: 86 | AE103: 2027-03-25 | AF103: 505.88 | AG103: 115.0871333 | AH103: 390.79 | AI103: 68661.49 | AJ103: 10000 | AK103: 2027-03-25 | AL103: 87 | AM103: -505.88 | AN103: 2027-03-25 | AO103: 86 | AP103: -505.88 | AY103: 46471 | BA103: FALSE | BC103: 86 | BD103: 2027-03-25 | BE103: 505.88 | BF103: 115.1079471 | BG103: 390.7720529 | BH103: 68659.70076
B104: 87 | C104: 505.88 | E104: 114.44 | F104: 391.44 | G104: 68270.05 | J104: 87 | K104: 2027-04-25 | O104: 505.88 | P104: 114.44 | Q104: 391.44 | R104: 68270.05 | T104: 2027-04-25 | U104: 88 | V104: -505.88 | W104: 2027-04-25 | X104: 87 | Y104: -505.88 | AD104: 87 | AE104: 2027-04-25 | AF104: 505.88 | AG104: 114.4358167 | AH104: 391.44 | AI104: 68270.05 | AJ104: 10000 | AK104: 2027-04-25 | AL104: 88 | AM104: -505.88 | AN104: 2027-04-25 | AO104: 87 | AP104: -505.88 | AY104: 46502 | BA104: FALSE | BC104: 87 | BD104: 2027-04-25 | BE104: 505.88 | BF104: 114.4565255 | BG104: 391.4234745 | BH104: 68268.27728
B105: 88 | C105: 505.88 | E105: 113.78 | F105: 392.1 | G105: 67877.95 | J105: 88 | K105: 2027-05-25 | O105: 505.88 | P105: 113.78 | Q105: 392.1 | R105: 67877.95 | T105: 2027-05-25 | U105: 89 | V105: -505.88 | W105: 2027-05-25 | X105: 88 | Y105: -505.88 | AD105: 88 | AE105: 2027-05-25 | AF105: 505.88 | AG105: 113.7834167 | AH105: 392.1 | AI105: 67877.95 | AJ105: 10000 | AK105: 2027-05-25 | AL105: 89 | AM105: -505.88 | AN105: 2027-05-25 | AO105: 88 | AP105: -505.88 | AY105: 46532 | BA105: FALSE | BC105: 88 | BD105: 2027-05-25 | BE105: 505.88 | BF105: 113.804018 | BG105: 392.075982 | BH105: 67876.2013
B106: 89 | C106: 505.88 | E106: 113.13 | F106: 392.75 | G106: 67485.2 | J106: 89 | K106: 2027-06-25 | O106: 505.88 | P106: 113.13 | Q106: 392.75 | R106: 67485.2 | T106: 2027-06-25 | U106: 90 | V106: -505.88 | W106: 2027-06-25 | X106: 89 | Y106: -505.88 | AD106: 89 | AE106: 2027-06-25 | AF106: 505.88 | AG106: 113.1299167 | AH106: 392.75 | AI106: 67485.2 | AJ106: 10000 | AK106: 2027-06-25 | AL106: 90 | AM106: -505.88 | AN106: 2027-06-25 | AO106: 89 | AP106: -505.88 | AY106: 46563 | BA106: FALSE | BC106: 89 | BD106: 2027-06-25 | BE106: 505.88 | BF106: 113.1504228 | BG106: 392.7295772 | BH106: 67483.47172
B107: 90 | C107: 505.88 | E107: 112.48 | F107: 393.4 | G107: 67091.8 | J107: 90 | K107: 2027-07-25 | O107: 505.88 | P107: 112.48 | Q107: 393.4 | R107: 67091.8 | T107: 2027-07-25 | U107: 91 | V107: -505.88 | W107: 2027-07-25 | X107: 90 | Y107: -505.88 | AD107: 90 | AE107: 2027-07-25 | AF107: 505.88 | AG107: 112.4753333 | AH107: 393.4 | AI107: 67091.8 | AJ107: 10000 | AK107: 2027-07-25 | AL107: 91 | AM107: -505.88 | AN107: 2027-07-25 | AO107: 90 | AP107: -505.88 | AY107: 46593 | BA107: FALSE | BC107: 90 | BD107: 2027-07-25 | BE107: 505.88 | BF107: 112.495738 | BG107: 393.384262 | BH107: 67090.08746
B108: 91 | C108: 505.88 | E108: 111.82 | F108: 394.06 | G108: 66697.74 | J108: 91 | K108: 2027-08-25 | O108: 505.88 | P108: 111.82 | Q108: 394.06 | R108: 66697.74 | T108: 2027-08-25 | U108: 92 | V108: -505.88 | W108: 2027-08-25 | X108: 91 | Y108: -505.88 | AD108: 91 | AE108: 2027-08-25 | AF108: 505.88 | AG108: 111.8196667 | AH108: 394.06 | AI108: 66697.74 | AJ108: 10000 | AK108: 2027-08-25 | AL108: 92 | AM108: -505.88 | AN108: 2027-08-25 | AO108: 91 | AP108: -505.88 | AY108: 46624 | BA108: FALSE | BC108: 91 | BD108: 2027-08-25 | BE108: 505.88 | BF108: 111.8399618 | BG108: 394.0400382 | BH108: 66696.04742
B109: 92 | C109: 505.88 | E109: 111.16 | F109: 394.72 | G109: 66303.02 | J109: 92 | K109: 2027-09-25 | O109: 505.88 | P109: 111.16 | Q109: 394.72 | R109: 66303.02 | T109: 2027-09-25 | U109: 93 | V109: -505.88 | W109: 2027-09-25 | X109: 92 | Y109: -505.88 | AD109: 92 | AE109: 2027-09-25 | AF109: 505.88 | AG109: 111.1629 | AH109: 394.72 | AI109: 66303.02 | AJ109: 10000 | AK109: 2027-09-25 | AL109: 93 | AM109: -505.88 | AN109: 2027-09-25 | AO109: 92 | AP109: -505.88 | AY109: 46655 | BA109: FALSE | BC109: 92 | BD109: 2027-09-25 | BE109: 505.88 | BF109: 111.1830924 | BG109: 394.6969076 | BH109: 66301.35051
B110: 93 | C110: 505.88 | E110: 110.51 | F110: 395.37 | G110: 65907.65 | J110: 93 | K110: 2027-10-25 | O110: 505.88 | P110: 110.51 | Q110: 395.37 | R110: 65907.65 | T110: 2027-10-25 | U110: 94 | V110: -505.88 | W110: 2027-10-25 | X110: 93 | Y110: -505.88 | AD110: 93 | AE110: 2027-10-25 | AF110: 505.88 | AG110: 110.5050333 | AH110: 395.37 | AI110: 65907.65 | AJ110: 10000 | AK110: 2027-10-25 | AL110: 94 | AM110: -505.88 | AN110: 2027-10-25 | AO110: 93 | AP110: -505.88 | AY110: 46685 | BA110: FALSE | BC110: 93 | BD110: 2027-10-25 | BE110: 505.88 | BF110: 110.5251281 | BG110: 395.3548719 | BH110: 65905.99564
B111: 94 | C111: 505.88 | E111: 109.85 | F111: 396.03 | G111: 65511.62 | J111: 94 | K111: 2027-11-25 | O111: 505.88 | P111: 109.85 | Q111: 396.03 | R111: 65511.62 | T111: 2027-11-25 | U111: 95 | V111: -505.88 | W111: 2027-11-25 | X111: 94 | Y111: -505.88 | AD111: 94 | AE111: 2027-11-25 | AF111: 505.88 | AG111: 109.8460833 | AH111: 396.03 | AI111: 65511.62 | AJ111: 10000 | AK111: 2027-11-25 | AL111: 95 | AM111: -505.88 | AN111: 2027-11-25 | AO111: 94 | AP111: -505.88 | AY111: 46716 | BA111: FALSE | BC111: 94 | BD111: 2027-11-25 | BE111: 505.88 | BF111: 109.8660669 | BG111: 396.0139331 | BH111: 65509.98171
B112: 95 | C112: 505.88 | E112: 109.19 | F112: 396.69 | G112: 65114.93 | J112: 95 | K112: 2027-12-25 | O112: 505.88 | P112: 109.19 | Q112: 396.69 | R112: 65114.93 | T112: 2027-12-25 | U112: 96 | V112: -505.88 | W112: 2027-12-25 | X112: 95 | Y112: -505.88 | AD112: 95 | AE112: 2027-12-25 | AF112: 505.88 | AG112: 109.1860333 | AH112: 396.69 | AI112: 65114.93 | AJ112: 10000 | AK112: 2027-12-25 | AL112: 96 | AM112: -505.88 | AN112: 2027-12-25 | AO112: 95 | AP112: -505.88 | AY112: 46746 | BA112: FALSE | BC112: 95 | BD112: 2027-12-25 | BE112: 505.88 | BF112: 109.205907 | BG112: 396.674093 | BH112: 65113.30762
B113: 96 | C113: 505.88 | E113: 108.52 | F113: 397.36 | G113: 64717.57 | J113: 96 | K113: 2028-01-25 | O113: 505.88 | P113: 108.52 | Q113: 397.36 | R113: 64717.57 | T113: 2028-01-25 | U113: 97 | V113: -505.88 | W113: 2028-01-25 | X113: 96 | Y113: -505.88 | AD113: 96 | AE113: 2028-01-25 | AF113: 505.88 | AG113: 108.5248833 | AH113: 397.36 | AI113: 64717.57 | AJ113: 10000 | AK113: 2028-01-25 | AL113: 97 | AM113: -505.88 | AN113: 2028-01-25 | AO113: 96 | AP113: -505.88 | AY113: 46777 | BA113: FALSE | BC113: 96 | BD113: 2028-01-25 | BE113: 505.88 | BF113: 108.5446466 | BG113: 397.3353534 | BH113: 64715.97226
B114: 97 | C114: 505.88 | E114: 107.86 | F114: 398.02 | G114: 64319.55 | J114: 97 | K114: 2028-02-25 | O114: 505.88 | P114: 107.86 | Q114: 398.02 | R114: 64319.55 | T114: 2028-02-25 | U114: 98 | V114: -505.88 | W114: 2028-02-25 | X114: 97 | Y114: -505.88 | AD114: 97 | AE114: 2028-02-25 | AF114: 505.88 | AG114: 107.8626167 | AH114: 398.02 | AI114: 64319.55 | AJ114: 10000 | AK114: 2028-02-25 | AL114: 98 | AM114: -505.88 | AN114: 2028-02-25 | AO114: 97 | AP114: -505.88 | AY114: 46808 | BA114: FALSE | BC114: 97 | BD114: 2028-02-25 | BE114: 505.88 | BF114: 107.8822839 | BG114: 397.9977161 | BH114: 64317.97455
B115: 98 | C115: 505.88 | E115: 107.2 | F115: 398.68 | G115: 63920.87 | J115: 98 | K115: 2028-03-25 | O115: 505.88 | P115: 107.2 | Q115: 398.68 | R115: 63920.87 | T115: 2028-03-25 | U115: 99 | V115: -505.88 | W115: 2028-03-25 | X115: 98 | Y115: -505.88 | AD115: 98 | AE115: 2028-03-25 | AF115: 505.88 | AG115: 107.19925 | AH115: 398.68 | AI115: 63920.87 | AJ115: 10000 | AK115: 2028-03-25 | AL115: 99 | AM115: -505.88 | AN115: 2028-03-25 | AO115: 98 | AP115: -505.88 | AY115: 46837 | BA115: FALSE | BC115: 98 | BD115: 2028-03-25 | BE115: 505.88 | BF115: 107.2188171 | BG115: 398.6611829 | BH115: 63919.31336
B116: 99 | C116: 505.88 | E116: 106.53 | F116: 399.35 | G116: 63521.52 | J116: 99 | K116: 2028-04-25 | O116: 505.88 | P116: 106.53 | Q116: 399.35 | R116: 63521.52 | T116: 2028-04-25 | U116: 100 | V116: -505.88 | W116: 2028-04-25 | X116: 99 | Y116: -505.88 | AD116: 99 | AE116: 2028-04-25 | AF116: 505.88 | AG116: 106.5347833 | AH116: 399.35 | AI116: 63521.52 | AJ116: 10000 | AK116: 2028-04-25 | AL116: 100 | AM116: -505.88 | AN116: 2028-04-25 | AO116: 99 | AP116: -505.88 | AY116: 46868 | BA116: FALSE | BC116: 99 | BD116: 2028-04-25 | BE116: 505.88 | BF116: 106.5542442 | BG116: 399.3257558 | BH116: 63519.98761
B117: 100 | C117: 505.88 | E117: 105.87 | F117: 400.01 | G117: 63121.51 | J117: 100 | K117: 2028-05-25 | O117: 505.88 | P117: 105.87 | Q117: 400.01 | R117: 63121.51 | T117: 2028-05-25 | U117: 101 | V117: -505.88 | W117: 2028-05-25 | X117: 100 | Y117: -505.88 | AD117: 100 | AE117: 2028-05-25 | AF117: 505.88 | AG117: 105.8692 | AH117: 400.01 | AI117: 63121.51 | AJ117: 10000 | AK117: 2028-05-25 | AL117: 101 | AM117: -505.88 | AN117: 2028-05-25 | AO117: 100 | AP117: -505.88 | AY117: 46898 | BA117: FALSE | BC117: 100 | BD117: 2028-05-25 | BE117: 505.88 | BF117: 105.8885635 | BG117: 399.9914365 | BH117: 63119.99617
B118: 101 | C118: 505.88 | E118: 105.2 | F118: 400.68 | G118: 62720.83 | J118: 101 | K118: 2028-06-25 | O118: 505.88 | P118: 105.2 | Q118: 400.68 | R118: 62720.83 | T118: 2028-06-25 | U118: 102 | V118: -505.88 | W118: 2028-06-25 | X118: 101 | Y118: -505.88 | AD118: 101 | AE118: 2028-06-25 | AF118: 505.88 | AG118: 105.2025167 | AH118: 400.68 | AI118: 62720.83 | AJ118: 10000 | AK118: 2028-06-25 | AL118: 102 | AM118: -505.88 | AN118: 2028-06-25 | AO118: 101 | AP118: -505.88 | AY118: 46929 | BA118: FALSE | BC118: 101 | BD118: 2028-06-25 | BE118: 505.88 | BF118: 105.2217731 | BG118: 400.6582269 | BH118: 62719.33795
B119: 102 | C119: 505.88 | E119: 104.53 | F119: 401.35 | G119: 62319.48 | J119: 102 | K119: 2028-07-25 | O119: 505.88 | P119: 104.53 | Q119: 401.35 | R119: 62319.48 | T119: 2028-07-25 | U119: 103 | V119: -505.88 | W119: 2028-07-25 | X119: 102 | Y119: -505.88 | AD119: 102 | AE119: 2028-07-25 | AF119: 505.88 | AG119: 104.5347167 | AH119: 401.35 | AI119: 62319.48 | AJ119: 10000 | AK119: 2028-07-25 | AL119: 103 | AM119: -505.88 | AN119: 2028-07-25 | AO119: 102 | AP119: -505.88 | AY119: 46959 | BA119: FALSE | BC119: 102 | BD119: 2028-07-25 | BE119: 505.88 | BF119: 104.5538711 | BG119: 401.3261289 | BH119: 62318.01182
B120: 103 | C120: 505.88 | E120: 103.87 | F120: 402.01 | G120: 61917.47 | J120: 103 | K120: 2028-08-25 | O120: 505.88 | P120: 103.87 | Q120: 402.01 | R120: 61917.47 | T120: 2028-08-25 | U120: 104 | V120: -505.88 | W120: 2028-08-25 | X120: 103 | Y120: -505.88 | AD120: 103 | AE120: 2028-08-25 | AF120: 505.88 | AG120: 103.8658 | AH120: 402.01 | AI120: 61917.47 | AJ120: 10000 | AK120: 2028-08-25 | AL120: 104 | AM120: -505.88 | AN120: 2028-08-25 | AO120: 103 | AP120: -505.88 | AY120: 46990 | BA120: FALSE | BC120: 103 | BD120: 2028-08-25 | BE120: 505.88 | BF120: 103.8848558 | BG120: 401.9951442 | BH120: 61916.01667
B121: 104 | C121: 505.88 | E121: 103.2 | F121: 402.68 | G121: 61514.79 | J121: 104 | K121: 2028-09-25 | O121: 505.88 | P121: 103.2 | Q121: 402.68 | R121: 61514.79 | T121: 2028-09-25 | U121: 105 | V121: -505.88 | W121: 2028-09-25 | X121: 104 | Y121: -505.88 | AD121: 104 | AE121: 2028-09-25 | AF121: 505.88 | AG121: 103.1957833 | AH121: 402.68 | AI121: 61514.79 | AJ121: 10000 | AK121: 2028-09-25 | AL121: 105 | AM121: -505.88 | AN121: 2028-09-25 | AO121: 104 | AP121: -505.88 | AY121: 47021 | BA121: FALSE | BC121: 104 | BD121: 2028-09-25 | BE121: 505.88 | BF121: 103.2147252 | BG121: 402.6652748 | BH121: 61513.3514
B122: 105 | C122: 505.88 | E122: 102.52 | F122: 403.36 | G122: 61111.43 | J122: 105 | K122: 2028-10-25 | O122: 505.88 | P122: 102.52 | Q122: 403.36 | R122: 61111.43 | T122: 2028-10-25 | U122: 106 | V122: -505.88 | W122: 2028-10-25 | X122: 105 | Y122: -505.88 | AD122: 105 | AE122: 2028-10-25 | AF122: 505.88 | AG122: 102.52465 | AH122: 403.36 | AI122: 61111.43 | AJ122: 10000 | AK122: 2028-10-25 | AL122: 106 | AM122: -505.88 | AN122: 2028-10-25 | AO122: 105 | AP122: -505.88 | AY122: 47051 | BA122: =IF($B122=$C$7,IF(AND($A$7=0,$B122>$C$7),0,IF(AND($A$7=0,$D122=0),$C121,IF(AND($A$7=0,$B122=$B$13),ROUNDDOWN($F122+$E122,2),IF($B122>$B$13,0,IF(AND($A$7=0,$D122<>0),$D122,IF($B122>$B$13,0,IF($B122=$B$13,ROUNDDOWN($F122+$E122,2),ROUND(-PMT($E$13/12,$B$13,$C$13,0,0),2))))))))) -> FALSE | BC122: 105 | BD122: 2028-10-25 | BE122: 505.88 | BF122: 102.5434774 | BG122: 403.3365226 | BH122: 61110.01487
B123: 106 | C123: 505.88 | E123: 101.85 | F123: 404.03 | G123: 60707.4 | J123: 106 | K123: 2028-11-25 | O123: 505.88 | P123: 101.85 | Q123: 404.03 | R123: 60707.4 | T123: 2028-11-25 | U123: 107 | V123: -505.88 | W123: 2028-11-25 | X123: 106 | Y123: -505.88 | AD123: 106 | AE123: 2028-11-25 | AF123: 505.88 | AG123: 101.8523833 | AH123: 404.03 | AI123: 60707.4 | AJ123: 10000 | AK123: 2028-11-25 | AL123: 107 | AM123: -505.88 | AN123: 2028-11-25 | AO123: 106 | AP123: -505.88 | AY123: 47082 | BA123: FALSE | BC123: 106 | BD123: 2028-11-25 | BE123: 505.88 | BF123: 101.8711107 | BG123: 404.0088893 | BH123: 60706.00599
B124: 107 | C124: 505.88 | E124: 101.18 | F124: 404.7 | G124: 60302.7 | J124: 107 | K124: 2028-12-25 | O124: 505.88 | P124: 101.18 | Q124: 404.7 | R124: 60302.7 | T124: 2028-12-25 | U124: 108 | V124: -505.88 | W124: 2028-12-25 | X124: 107 | Y124: -505.88 | AD124: 107 | AE124: 2028-12-25 | AF124: 505.88 | AG124: 101.179 | AH124: 404.7 | AI124: 60302.7 | AJ124: 10000 | AK124: 2028-12-25 | AL124: 108 | AM124: -505.88 | AN124: 2028-12-25 | AO124: 107 | AP124: -505.88 | AY124: 47112 | BA124: FALSE | BC124: 107 | BD124: 2028-12-25 | BE124: 505.88 | BF124: 101.1976232 | BG124: 404.6823768 | BH124: 60301.32361
B125: 108 | C125: 505.88 | E125: 100.5 | F125: 405.38 | G125: 59897.32 | J125: 108 | K125: 2029-01-25 | O125: 505.88 | P125: 100.5 | Q125: 405.38 | R125: 59897.32 | T125: 2029-01-25 | U125: 109 | V125: -505.88 | W125: 2029-01-25 | X125: 108 | Y125: -505.88 | AD125: 108 | AE125: 2029-01-25 | AF125: 505.88 | AG125: 100.5045 | AH125: 405.38 | AI125: 59897.32 | AJ125: 10000 | AK125: 2029-01-25 | AL125: 109 | AM125: -505.88 | AN125: 2029-01-25 | AO125: 108 | AP125: -505.88 | AY125: 47143 | BA125: FALSE | BC125: 108 | BD125: 2029-01-25 | BE125: 505.88 | BF125: 100.5230129 | BG125: 405.3569871 | BH125: 59895.96662
B126: 109 | C126: 505.88 | E126: 99.83 | F126: 406.05 | G126: 59491.27 | J126: 109 | K126: 2029-02-25 | O126: 505.88 | P126: 99.83 | Q126: 406.05 | R126: 59491.27 | T126: 2029-02-25 | U126: 110 | V126: -505.88 | W126: 2029-02-25 | X126: 109 | Y126: -505.88 | AD126: 109 | AE126: 2029-02-25 | AF126: 505.88 | AG126: 99.82886667 | AH126: 406.05 | AI126: 59491.27 | AJ126: 10000 | AK126: 2029-02-25 | AL126: 110 | AM126: -505.88 | AN126: 2029-02-25 | AO126: 109 | AP126: -505.88 | AY126: 47174 | BA126: FALSE | BC126: 109 | BD126: 2029-02-25 | BE126: 505.88 | BF126: 99.84727807 | BG126: 406.0327219 | BH126: 59489.9339
B127: 110 | C127: 505.88 | E127: 99.15 | F127: 406.73 | G127: 59084.54 | J127: 110 | K127: 2029-03-25 | O127: 505.88 | P127: 99.15 | Q127: 406.73 | R127: 59084.54 | T127: 2029-03-25 | U127: 111 | V127: -505.88 | W127: 2029-03-25 | X127: 110 | Y127: -505.88 | AD127: 110 | AE127: 2029-03-25 | AF127: 505.88 | AG127: 99.15211667 | AH127: 406.73 | AI127: 59084.54 | AJ127: 10000 | AK127: 2029-03-25 | AL127: 111 | AM127: -505.88 | AN127: 2029-03-25 | AO127: 110 | AP127: -505.88 | AY127: 47202 | BA127: FALSE | BC127: 110 | BD127: 2029-03-25 | BE127: 505.88 | BF127: 99.17041677 | BG127: 406.7095832 | BH127: 59083.22432
B128: 111 | C128: 505.88 | E128: 98.47 | F128: 407.41 | G128: 58677.13 | J128: 111 | K128: 2029-04-25 | O128: 505.88 | P128: 98.47 | Q128: 407.41 | R128: 58677.13 | T128: 2029-04-25 | U128: 112 | V128: -505.88 | W128: 2029-04-25 | X128: 111 | Y128: -505.88 | AD128: 111 | AE128: 2029-04-25 | AF128: 505.88 | AG128: 98.47423333 | AH128: 407.41 | AI128: 58677.13 | AJ128: 10000 | AK128: 2029-04-25 | AL128: 112 | AM128: -505.88 | AN128: 2029-04-25 | AO128: 111 | AP128: -505.88 | AY128: 47233 | BA128: FALSE | BC128: 111 | BD128: 2029-04-25 | BE128: 505.88 | BF128: 98.49242713 | BG128: 407.3875729 | BH128: 58675.83674
B129: 112 | C129: 505.88 | E129: 97.8 | F129: 408.08 | G129: 58269.05 | J129: 112 | K129: 2029-05-25 | O129: 505.88 | P129: 97.8 | Q129: 408.08 | R129: 58269.05 | T129: 2029-05-25 | U129: 113 | V129: -505.88 | W129: 2029-05-25 | X129: 112 | Y129: -505.88 | AD129: 112 | AE129: 2029-05-25 | AF129: 505.88 | AG129: 97.79521667 | AH129: 408.08 | AI129: 58269.05 | AJ129: 10000 | AK129: 2029-05-25 | AL129: 113 | AM129: -505.88 | AN129: 2029-05-25 | AO129: 112 | AP129: -505.88 | AY129: 47263 | BA129: FALSE | BC129: 112 | BD129: 2029-05-25 | BE129: 505.88 | BF129: 97.81330727 | BG129: 408.0666927 | BH129: 58267.77005
B130: 113 | C130: 505.88 | E130: 97.12 | F130: 408.76 | G130: 57860.29 | J130: 113 | K130: 2029-06-25 | O130: 505.88 | P130: 97.12 | Q130: 408.76 | R130: 57860.29 | T130: 2029-06-25 | U130: 114 | V130: -505.88 | W130: 2029-06-25 | X130: 113 | Y130: -505.88 | AD130: 113 | AE130: 2029-06-25 | AF130: 505.88 | AG130: 97.11508333 | AH130: 408.76 | AI130: 57860.29 | AJ130: 10000 | AK130: 2029-06-25 | AL130: 114 | AM130: -505.88 | AN130: 2029-06-25 | AO130: 113 | AP130: -505.88 | AY130: 47294 | BA130: FALSE | BC130: 113 | BD130: 2029-06-25 | BE130: 505.88 | BF130: 97.13305531 | BG130: 408.7469447 | BH130: 57859.02311
B131: 114 | C131: 505.88 | E131: 96.43 | F131: 409.45 | G131: 57450.84 | J131: 114 | K131: 2029-07-25 | O131: 505.88 | P131: 96.43 | Q131: 409.45 | R131: 57450.84 | T131: 2029-07-25 | U131: 115 | V131: -505.88 | W131: 2029-07-25 | X131: 114 | Y131: -505.88 | AD131: 114 | AE131: 2029-07-25 | AF131: 505.88 | AG131: 96.43381667 | AH131: 409.45 | AI131: 57450.84 | AJ131: 10000 | AK131: 2029-07-25 | AL131: 115 | AM131: -505.88 | AN131: 2029-07-25 | AO131: 114 | AP131: -505.88 | AY131: 47324 | BA131: FALSE | BC131: 114 | BD131: 2029-07-25 | BE131: 505.88 | BF131: 96.45166937 | BG131: 409.4283306 | BH131: 57449.59478
B132: 115 | C132: 505.88 | E132: 95.75 | F132: 410.13 | G132: 57040.71 | J132: 115 | K132: 2029-08-25 | O132: 505.88 | P132: 95.75 | Q132: 410.13 | R132: 57040.71 | T132: 2029-08-25 | U132: 116 | V132: -505.88 | W132: 2029-08-25 | X132: 115 | Y132: -505.88 | AD132: 115 | AE132: 2029-08-25 | AF132: 505.88 | AG132: 95.7514 | AH132: 410.13 | AI132: 57040.71 | AJ132: 10000 | AK132: 2029-08-25 | AL132: 116 | AM132: -505.88 | AN132: 2029-08-25 | AO132: 115 | AP132: -505.88 | AY132: 47355 | BA132: FALSE | BC132: 115 | BD132: 2029-08-25 | BE132: 505.88 | BF132: 95.76914754 | BG132: 410.1108525 | BH132: 57039.48392
B133: 116 | C133: 505.88 | E133: 95.07 | F133: 410.81 | G133: 56629.9 | J133: 116 | K133: 2029-09-25 | O133: 505.88 | P133: 95.07 | Q133: 410.81 | R133: 56629.9 | T133: 2029-09-25 | U133: 117 | V133: -505.88 | W133: 2029-09-25 | X133: 116 | Y133: -505.88 | AD133: 116 | AE133: 2029-09-25 | AF133: 505.88 | AG133: 95.06785 | AH133: 410.81 | AI133: 56629.9 | AJ133: 10000 | AK133: 2029-09-25 | AL133: 117 | AM133: -505.88 | AN133: 2029-09-25 | AO133: 116 | AP133: -505.88 | AY133: 47386 | BA133: FALSE | BC133: 116 | BD133: 2029-09-25 | BE133: 505.88 | BF133: 95.08548795 | BG133: 410.7945121 | BH133: 56628.68941
B134: 117 | C134: 505.88 | E134: 94.38 | F134: 411.5 | G134: 56218.4 | J134: 117 | K134: 2029-10-25 | O134: 505.88 | P134: 94.38 | Q134: 411.5 | R134: 56218.4 | T134: 2029-10-25 | U134: 118 | V134: -505.88 | W134: 2029-10-25 | X134: 117 | Y134: -505.88 | AD134: 117 | AE134: 2029-10-25 | AF134: 505.88 | AG134: 94.38316667 | AH134: 411.5 | AI134: 56218.4 | AJ134: 10000 | AK134: 2029-10-25 | AL134: 118 | AM134: -505.88 | AN134: 2029-10-25 | AO134: 117 | AP134: -505.88 | AY134: 47416 | BA134: FALSE | BC134: 117 | BD134: 2029-10-25 | BE134: 505.88 | BF134: 94.40068868 | BG134: 411.4793113 | BH134: 56217.2101
B135: 118 | C135: 505.88 | E135: 93.7 | F135: 412.18 | G135: 55806.22 | J135: 118 | K135: 2029-11-25 | O135: 505.88 | P135: 93.7 | Q135: 412.18 | R135: 55806.22 | T135: 2029-11-25 | U135: 119 | V135: -505.88 | W135: 2029-11-25 | X135: 118 | Y135: -505.88 | AD135: 118 | AE135: 2029-11-25 | AF135: 505.88 | AG135: 93.69733333 | AH135: 412.18 | AI135: 55806.22 | AJ135: 10000 | AK135: 2029-11-25 | AL135: 119 | AM135: -505.88 | AN135: 2029-11-25 | AO135: 118 | AP135: -505.88 | AY135: 47447 | BA135: FALSE | BC135: 118 | BD135: 2029-11-25 | BE135: 505.88 | BF135: 93.71474785 | BG135: 412.1652521 | BH135: 55805.04485
B136: 119 | C136: 505.88 | E136: 93.01 | F136: 412.87 | G136: 55393.35 | J136: 119 | K136: 2029-12-25 | O136: 505.88 | P136: 93.01 | Q136: 412.87 | R136: 55393.35 | T136: 2029-12-25 | U136: 120 | V136: -505.88 | W136: 2029-12-25 | X136: 119 | Y136: -505.88 | AD136: 119 | AE136: 2029-12-25 | AF136: 505.88 | AG136: 93.01036667 | AH136: 412.87 | AI136: 55393.35 | AJ136: 10000 | AK136: 2029-12-25 | AL136: 120 | AM136: -505.88 | AN136: 2029-12-25 | AO136: 119 | AP136: -505.88 | AY136: 47477 | BA136: FALSE | BC136: 119 | BD136: 2029-12-25 | BE136: 505.88 | BF136: 93.02766355 | BG136: 412.8523365 | BH136: 55392.19251
B137: 120 | C137: 505.88 | E137: 92.32 | F137: 413.56 | G137: 54979.79 | J137: 120 | K137: 2030-01-25 | O137: 505.88 | P137: 92.32 | Q137: 413.56 | R137: 54979.79 | T137: 2030-01-25 | U137: 121 | V137: -505.88 | W137: 2030-01-25 | X137: 120 | Y137: -505.88 | AD137: 120 | AE137: 2030-01-25 | AF137: 505.88 | AG137: 92.32225 | AH137: 413.56 | AI137: 54979.79 | AJ137: 10000 | AK137: 2030-01-25 | AL137: 121 | AM137: -505.88 | AN137: 2030-01-25 | AO137: 120 | AP137: -505.88 | AY137: 47508 | BA137: FALSE | BC137: 120 | BD137: 2030-01-25 | BE137: 505.88 | BF137: 92.33943387 | BG137: 413.5405661 | BH137: 54978.65195
B138: 121 | C138: 505.88 | D138: 635.19 | E138: 91.63 | F138: 414.25 | G138: 54565.54 | J138: 121 | K138: 2030-02-25 | O138: 505.88 | P138: 91.63 | Q138: 414.25 | R138: 54565.54 | T138: 2030-02-25 | U138: 122 | V138: -505.88 | W138: 2030-02-25 | X138: 121 | Y138: -505.88 | AD138: 121 | AE138: 2030-02-25 | AF138: 505.88 | AG138: 91.63298333 | AH138: 414.25 | AI138: 54565.54 | AJ138: 10000 | AK138: 2030-02-25 | AL138: 122 | AM138: -505.88 | AN138: 2030-02-25 | AO138: 121 | AP138: -505.88 | AY138: 47539 | BA138: FALSE | BC138: 121 | BD138: 2030-02-25 | BE138: 505.88 | BF138: 91.6500569 | BG138: 414.2299431 | BH138: 54564.422
B139: 122 | C139: 505.88 | E139: 90.94 | F139: 414.94 | G139: 54150.6 | J139: 122 | K139: 2030-03-25 | O139: 505.88 | P139: 90.94 | Q139: 414.94 | R139: 54150.6 | T139: 2030-03-25 | U139: 123 | V139: -505.88 | W139: 2030-03-25 | X139: 122 | Y139: -505.88 | AD139: 122 | AE139: 2030-03-25 | AF139: 505.88 | AG139: 90.94256667 | AH139: 414.94 | AI139: 54150.6 | AJ139: 10000 | AK139: 2030-03-25 | AL139: 123 | AM139: -505.88 | AN139: 2030-03-25 | AO139: 122 | AP139: -505.88 | AY139: 47567 | BA139: FALSE | BC139: 122 | BD139: 2030-03-25 | BE139: 505.88 | BF139: 90.95953073 | BG139: 414.9204693 | BH139: 54149.50153
B140: 123 | C140: 505.88 | E140: 90.25 | F140: 415.63 | G140: 53734.97 | J140: 123 | K140: 2030-04-25 | O140: 505.88 | P140: 90.25 | Q140: 415.63 | R140: 53734.97 | T140: 2030-04-25 | U140: 124 | V140: -505.88 | W140: 2030-04-25 | X140: 123 | Y140: -505.88 | AD140: 123 | AE140: 2030-04-25 | AF140: 505.88 | AG140: 90.251 | AH140: 415.63 | AI140: 53734.97 | AJ140: 10000 | AK140: 2030-04-25 | AL140: 124 | AM140: -505.88 | AN140: 2030-04-25 | AO140: 123 | AP140: -505.88 | AY140: 47598 | BA140: FALSE | BC140: 123 | BD140: 2030-04-25 | BE140: 505.88 | BF140: 90.26785345 | BG140: 415.6121466 | BH140: 53733.88939
B141: 124 | C141: 505.88 | E141: 89.56 | F141: 416.32 | G141: 53318.65 | J141: 124 | K141: 2030-05-25 | O141: 505.88 | P141: 89.56 | Q141: 416.32 | R141: 53318.65 | T141: 2030-05-25 | U141: 125 | V141: -505.88 | W141: 2030-05-25 | X141: 124 | Y141: -505.88 | AD141: 124 | AE141: 2030-05-25 | AF141: 505.88 | AG141: 89.55828333 | AH141: 416.32 | AI141: 53318.65 | AJ141: 10000 | AK141: 2030-05-25 | AL141: 125 | AM141: -505.88 | AN141: 2030-05-25 | AO141: 124 | AP141: -505.88 | AY141: 47628 | BA141: FALSE | BC141: 124 | BD141: 2030-05-25 | BE141: 505.88 | BF141: 89.57502313 | BG141: 416.3049769 | BH141: 53317.58441
B142: 125 | C142: 505.88 | E142: 88.86 | F142: 417.02 | G142: 52901.63 | J142: 125 | K142: 2030-06-25 | O142: 505.88 | P142: 88.86 | Q142: 417.02 | R142: 52901.63 | T142: 2030-06-25 | U142: 126 | V142: -505.88 | W142: 2030-06-25 | X142: 125 | Y142: -505.88 | AD142: 125 | AE142: 2030-06-25 | AF142: 505.88 | AG142: 88.86441667 | AH142: 417.02 | AI142: 52901.63 | AJ142: 10000 | AK142: 2030-06-25 | AL142: 126 | AM142: -505.88 | AN142: 2030-06-25 | AO142: 125 | AP142: -505.88 | AY142: 47659 | BA142: FALSE | BC142: 125 | BD142: 2030-06-25 | BE142: 505.88 | BF142: 88.88103786 | BG142: 416.9989621 | BH142: 52900.58545
B143: 126 | C143: 505.88 | E143: 88.17 | F143: 417.71 | G143: 52483.92 | J143: 126 | K143: 2030-07-25 | O143: 505.88 | P143: 88.17 | Q143: 417.71 | R143: 52483.92 | T143: 2030-07-25 | U143: 127 | V143: -505.88 | W143: 2030-07-25 | X143: 126 | Y143: -505.88 | AD143: 126 | AE143: 2030-07-25 | AF143: 505.88 | AG143: 88.16938333 | AH143: 417.71 | AI143: 52483.92 | AJ143: 10000 | AK143: 2030-07-25 | AL143: 127 | AM143: -505.88 | AN143: 2030-07-25 | AO143: 126 | AP143: -505.88 | AY143: 47689 | BA143: FALSE | BC143: 126 | BD143: 2030-07-25 | BE143: 505.88 | BF143: 88.1858957 | BG143: 417.6941043 | BH143: 52482.89134
B144: 127 | C144: 505.88 | E144: 87.47 | F144: 418.41 | G144: 52065.51 | J144: 127 | K144: 2030-08-25 | O144: 505.88 | P144: 87.47 | Q144: 418.41 | R144: 52065.51 | T144: 2030-08-25 | U144: 128 | V144: -505.88 | W144: 2030-08-25 | X144: 127 | Y144: -505.88 | AD144: =J144 -> 127 | AE144: =K144 -> 2030-08-25 | AF144: 505.88 | AG144: 87.4732 | AH144: 418.41 | AI144: 52065.51 | AJ144: 10000 | AK144: =T144 -> 2030-08-25 | AL144: =U144 -> 128 | AM144: -505.88 | AN144: 2030-08-25 | AO144: 127 | AP144: -505.88 | AY144: 47720 | BA144: FALSE | BC144: =AD144 -> 127 | BD144: =AE144 -> 2030-08-25 | BE144: 505.88 | BF144: 87.48959473 | BG144: 418.3904053 | BH144: 52064.50094
B145: 128 | C145: 505.88 | E145: 86.78 | F145: 419.1 | G145: 51646.41 | J145: 128 | K145: 2030-09-25 | O145: 505.88 | P145: 86.78 | Q145: 419.1 | R145: 51646.41 | T145: 2030-09-25 | U145: 129 | V145: -505.88 | W145: 2030-09-25 | X145: 128 | Y145: -505.88 | AD145: 128 | AE145: 2030-09-25 | AF145: 505.88 | AG145: 86.77585 | AH145: 419.1 | AI145: 51646.41 | AJ145: =IF(AD145<>$C$7,10000,AI515) -> 10000 | AK145: 2030-09-25 | AL145: 129 | AM145: -505.88 | AN145: 2030-09-25 | AO145: 128 | AP145: -505.88 | AY145: 47751 | BA145: FALSE | BC145: 128 | BD145: 2030-09-25 | BE145: 505.88 | BF145: 86.79213303 | BG145: 419.087867 | BH145: 51645.41307
B146: 129 | C146: 505.88 | E146: 86.08 | F146: =IF(B146>$B$13,0,IF(B146=$B$13,G145,C146-E146)) -> 419.8 | G146: =IF(B146>$B$13,0,G145-F146) -> 51226.61 | J146: 129 | K146: 2030-10-25 | O146: 505.88 | P146: 86.08 | Q146: 419.8 | R146: 51226.61 | T146: =EDATE(T145,1) -> 2030-10-25 | U146: 130 | V146: =IF(U146>$V$11,0,IF($H$7=1,-O147,-O146)) -> -505.88 | W146: 2030-10-25 | X146: 129 | Y146: =IF(X146>$Y$11,0,IF($H$7=1,-O146,V146)) -> -505.88 | AD146: 129 | AE146: 2030-10-25 | AF146: 505.88 | AG146: 86.07735 | AH146: 419.8 | AI146: 51226.61 | AJ146: 10000 | AK146: 2030-10-25 | AL146: 130 | AM146: =IF(AL146>$V$11,0,IF($H$7=1,-AF147,-AF146)) -> -505.88 | AN146: 2030-10-25 | AO146: 129 | AP146: =IF(AO146>$Y$11,0,IF($H$7=1,-AF146,AM146)) -> -505.88 | AT146: =IF($B146=$C$7,B146,"") ->  | AU146: =IF($B146=$C$7,C146,"") ->  | AV146: =IF($B146=$C$7,E146,"") ->  | AW146: =IF($B146=$C$7,F146,"") ->  | AX146: =IF($B146=$C$7,G146,"") ->  | AY146: =K146 -> 47781 | BA146: FALSE | BC146: 129 | BD146: 2030-10-25 | BE146: 505.88 | BF146: 86.09350864 | BG146: 419.7864914 | BH146: 51225.62658
B147: 130 | C147: =IF(AND($A$7=0,$B147>$C$7),0,IF(AND($A$7=0,$B147=$C$7),ROUND(($F147+$E147),2),IF(AND($A$7=0,$D147=0),ROUND($C146,2),IF(AND($A$7=0,$B147=$B$13),ROUND($F147+$E147,2),IF($B147>$B$13,0,IF(AND($A$7=0,$D147<>0),ROUND($D147,2),IF($B147>$B$13,0,IF($B147=$B$13,ROUND($F147+$E147,2),ROUND(-PMT($E$13/12,$B$13,$C$13,0,0),2))))))))) -> 505.88 | E147: =IF(B147>$B$13,0,ROUND(G146*$E$13/12,2)) -> 85.38 | F147: 420.5 | G147: 50806.11 | J147: 130 | K147: 2030-11-25 | O147: 505.88 | P147: 85.38 | Q147: =IF($P$7="Oui",O147-P147,F147) -> 420.5 | R147: =IF(J147>$B$13,0,R146-Q147) -> 50806.11 | T147: 2030-11-25 | U147: 131 | V147: -505.88 | W147: =EDATE(W146,1) -> 2030-11-25 | X147: 130 | Y147: -505.88 | AD147: 130 | AE147: 2030-11-25 | AF147: 505.88 | AG147: 85.37768333 | AH147: 420.5 | AI147: =AI146-AH147 -> 50806.11 | AJ147: 10000 | AK147: 2030-11-25 | AL147: 131 | AM147: -505.88 | AN147: =EDATE(AN146,1) -> 2030-11-25 | AO147: 130 | AP147: -505.88 | AY147: 47812 | BA147: FALSE | BC147: 130 | BD147: 2030-11-25 | BE147: 505.88 | BF147: 85.39371964 | BG147: 420.4862804 | BH147: =BH146-BG147 -> 50805.1403
B148: 131 | C148: 505.88 | E148: 84.68 | F148: 421.2 | G148: 50384.91 | J148: 131 | K148: =EDATE(K147,1) -> 2030-12-25 | O148: =IF(J148>$C$7,0,IF($P$7="Oui",IF(J148=$C$7,ROUND(Q148+P148,2),$AE$14),ROUND(C148,2))) -> 505.88 | P148: =IF($P$7="Oui",R147*$E$7/12,ROUND(R147*$E$7/12,2)) -> 84.68 | Q148: 421.2 | R148: 50384.91 | T148: 2030-12-25 | U148: 132 | V148: -505.88 | W148: 2030-12-25 | X148: 131 | Y148: -505.88 | AD148: 131 | AE148: 2030-12-25 | AF148: =IF(AD148>$C$7,0,IF($P$7="Oui",IF(AD148=$C$7,AH148+AG148,$AE$14),O148)) -> 505.88 | AG148: =IF($P$7="Oui",AI147*$AF$13/12,AI147*$E$7/12) -> 84.67685 | AH148: =IF($P$7="Oui",IF(AD148=$C$7,AI147,AF148-AG148),Q148) -> 421.2 | AI148: 50384.91 | AJ148: 10000 | AK148: 2030-12-25 | AL148: 132 | AM148: -505.88 | AN148: 2030-12-25 | AO148: 131 | AP148: -505.88 | AY148: 47842 | BA148: FALSE | BC148: 131 | BD148: 2030-12-25 | BE148: 505.88 | BF148: =BH147*$BE$13/12 -> 84.69276409 | BG148: 421.1872359 | BH148: 50383.95306
B149: 132 | C149: 505.88 | E149: 83.97 | F149: 421.91 | G149: 49963 | J149: 132 | K149: 2031-01-25 | O149: 505.88 | P149: 83.97 | Q149: 421.91 | R149: 49963 | T149: 2031-01-25 | U149: 133 | V149: -505.88 | W149: 2031-01-25 | X149: 132 | Y149: -505.88 | AD149: 132 | AE149: 2031-01-25 | AF149: 505.88 | AG149: 83.97485 | AH149: 421.91 | AI149: 49963 | AJ149: 10000 | AK149: 2031-01-25 | AL149: 133 | AM149: -505.88 | AN149: 2031-01-25 | AO149: 132 | AP149: -505.88 | AY149: 47873 | BA149: FALSE | BC149: 132 | BD149: 2031-01-25 | BE149: 505.88 | BF149: 83.99064003 | BG149: 421.88936 | BH149: 49962.0637
B150: 133 | C150: 505.88 | E150: 83.27 | F150: 422.61 | G150: 49540.39 | J150: 133 | K150: 2031-02-25 | O150: 505.88 | P150: 83.27 | Q150: 422.61 | R150: 49540.39 | T150: 2031-02-25 | U150: 134 | V150: -505.88 | W150: 2031-02-25 | X150: 133 | Y150: -505.88 | AD150: 133 | AE150: 2031-02-25 | AF150: 505.88 | AG150: 83.27166667 | AH150: 422.61 | AI150: 49540.39 | AJ150: 10000 | AK150: 2031-02-25 | AL150: 134 | AM150: -505.88 | AN150: 2031-02-25 | AO150: 133 | AP150: -505.88 | AY150: 47904 | BA150: FALSE | BC150: 133 | BD150: 2031-02-25 | BE150: 505.88 | BF150: 83.28734553 | BG150: 422.5926545 | BH150: 49539.47105
B151: 134 | C151: 505.88 | E151: 82.57 | F151: 423.31 | G151: 49117.08 | J151: 134 | K151: 2031-03-25 | O151: 505.88 | P151: 82.57 | Q151: 423.31 | R151: 49117.08 | T151: 2031-03-25 | U151: 135 | V151: -505.88 | W151: 2031-03-25 | X151: 134 | Y151: -505.88 | AD151: 134 | AE151: 2031-03-25 | AF151: 505.88 | AG151: 82.56731667 | AH151: 423.31 | AI151: 49117.08 | AJ151: 10000 | AK151: 2031-03-25 | AL151: 135 | AM151: -505.88 | AN151: 2031-03-25 | AO151: 134 | AP151: -505.88 | AY151: 47932 | BA151: FALSE | BC151: 134 | BD151: 2031-03-25 | BE151: 505.88 | BF151: 82.58287862 | BG151: 423.2971214 | BH151: 49116.17393
B152: 135 | C152: 505.88 | E152: 81.86 | F152: 424.02 | G152: 48693.06 | J152: 135 | K152: 2031-04-25 | O152: 505.88 | P152: 81.86 | Q152: 424.02 | R152: 48693.06 | T152: 2031-04-25 | U152: 136 | V152: -505.88 | W152: 2031-04-25 | X152: 135 | Y152: -505.88 | AD152: 135 | AE152: 2031-04-25 | AF152: 505.88 | AG152: 81.8618 | AH152: 424.02 | AI152: 48693.06 | AJ152: 10000 | AK152: 2031-04-25 | AL152: 136 | AM152: -505.88 | AN152: 2031-04-25 | AO152: 135 | AP152: -505.88 | AY152: 47963 | BA152: FALSE | BC152: 135 | BD152: 2031-04-25 | BE152: =AF152 -> 505.88 | BF152: 81.87723736 | BG152: =IF(BC152=$C$7,BH151,BE152-BF152) -> 424.0027626 | BH152: 48692.17116
B153: 136 | C153: 505.88 | E153: 81.16 | F153: 424.72 | G153: 48268.34 | J153: 136 | K153: 2031-05-25 | O153: 505.88 | P153: 81.16 | Q153: 424.72 | R153: 48268.34 | T153: 2031-05-25 | U153: 137 | V153: -505.88 | W153: 2031-05-25 | X153: 136 | Y153: -505.88 | AD153: 136 | AE153: 2031-05-25 | AF153: 505.88 | AG153: 81.1551 | AH153: 424.72 | AI153: 48268.34 | AJ153: 10000 | AK153: 2031-05-25 | AL153: 137 | AM153: -505.88 | AN153: 2031-05-25 | AO153: 136 | AP153: -505.88 | AY153: 47993 | BA153: FALSE | BC153: 136 | BD153: 2031-05-25 | BE153: 505.88 | BF153: 81.17041979 | BG153: 424.7095802 | BH153: 48267.46158
B154: 137 | C154: 505.88 | E154: 80.45 | F154: 425.43 | G154: 47842.91 | J154: 137 | K154: 2031-06-25 | O154: 505.88 | P154: 80.45 | Q154: 425.43 | R154: 47842.91 | T154: 2031-06-25 | U154: 138 | V154: -505.88 | W154: 2031-06-25 | X154: 137 | Y154: -505.88 | AD154: 137 | AE154: 2031-06-25 | AF154: 505.88 | AG154: 80.44723333 | AH154: 425.43 | AI154: 47842.91 | AJ154: 10000 | AK154: 2031-06-25 | AL154: 138 | AM154: -505.88 | AN154: 2031-06-25 | AO154: 137 | AP154: -505.88 | AY154: 48024 | BA154: FALSE | BC154: 137 | BD154: 2031-06-25 | BE154: 505.88 | BF154: 80.46242394 | BG154: 425.4175761 | BH154: 47842.04401
B155: 138 | C155: 505.88 | E155: 79.74 | F155: 426.14 | G155: 47416.77 | J155: 138 | K155: 2031-07-25 | O155: 505.88 | P155: 79.74 | Q155: 426.14 | R155: 47416.77 | T155: 2031-07-25 | U155: 139 | V155: -505.88 | W155: 2031-07-25 | X155: 138 | Y155: -505.88 | AD155: 138 | AE155: 2031-07-25 | AF155: 505.88 | AG155: 79.73818333 | AH155: 426.14 | AI155: 47416.77 | AJ155: 10000 | AK155: 2031-07-25 | AL155: 139 | AM155: -505.88 | AN155: 2031-07-25 | AO155: 138 | AP155: -505.88 | AY155: 48054 | BA155: FALSE | BC155: 138 | BD155: 2031-07-25 | BE155: 505.88 | BF155: 79.75324786 | BG155: 426.1267521 | BH155: 47415.91726
B156: 139 | C156: 505.88 | E156: 79.03 | F156: 426.85 | G156: 46989.92 | J156: 139 | K156: 2031-08-25 | O156: 505.88 | P156: 79.03 | Q156: 426.85 | R156: 46989.92 | T156: 2031-08-25 | U156: 140 | V156: -505.88 | W156: 2031-08-25 | X156: 139 | Y156: -505.88 | AD156: 139 | AE156: 2031-08-25 | AF156: 505.88 | AG156: 79.02795 | AH156: 426.85 | AI156: 46989.92 | AJ156: 10000 | AK156: 2031-08-25 | AL156: 140 | AM156: -505.88 | AN156: 2031-08-25 | AO156: 139 | AP156: -505.88 | AY156: 48085 | BA156: FALSE | BC156: 139 | BD156: 2031-08-25 | BE156: 505.88 | BF156: 79.04288957 | BG156: 426.8371104 | BH156: 46989.08015
B157: 140 | C157: 505.88 | E157: 78.32 | F157: 427.56 | G157: 46562.36 | J157: 140 | K157: 2031-09-25 | O157: 505.88 | P157: 78.32 | Q157: 427.56 | R157: 46562.36 | T157: 2031-09-25 | U157: 141 | V157: -505.88 | W157: 2031-09-25 | X157: 140 | Y157: -505.88 | AD157: 140 | AE157: 2031-09-25 | AF157: 505.88 | AG157: 78.31653333 | AH157: 427.56 | AI157: 46562.36 | AJ157: 10000 | AK157: 2031-09-25 | AL157: 141 | AM157: -505.88 | AN157: 2031-09-25 | AO157: 140 | AP157: -505.88 | AY157: 48116 | BA157: FALSE | BC157: 140 | BD157: 2031-09-25 | BE157: 505.88 | BF157: 78.33134711 | BG157: 427.5486529 | BH157: 46561.53149
B158: 141 | C158: 505.88 | E158: 77.6 | F158: 428.28 | G158: 46134.08 | J158: 141 | K158: 2031-10-25 | O158: 505.88 | P158: 77.6 | Q158: 428.28 | R158: 46134.08 | T158: 2031-10-25 | U158: 142 | V158: -505.88 | W158: 2031-10-25 | X158: 141 | Y158: -505.88 | AD158: 141 | AE158: 2031-10-25 | AF158: 505.88 | AG158: 77.60393333 | AH158: 428.28 | AI158: 46134.08 | AJ158: 10000 | AK158: 2031-10-25 | AL158: 142 | AM158: -505.88 | AN158: 2031-10-25 | AO158: 141 | AP158: -505.88 | AY158: 48146 | BA158: FALSE | BC158: 141 | BD158: 2031-10-25 | BE158: 505.88 | BF158: 77.61861849 | BG158: 428.2613815 | BH158: 46133.27011
B159: 142 | C159: 505.88 | E159: 76.89 | F159: 428.99 | G159: 45705.09 | J159: 142 | K159: 2031-11-25 | O159: 505.88 | P159: 76.89 | Q159: 428.99 | R159: 45705.09 | T159: 2031-11-25 | U159: 143 | V159: -505.88 | W159: 2031-11-25 | X159: 142 | Y159: -505.88 | AD159: 142 | AE159: 2031-11-25 | AF159: 505.88 | AG159: 76.89013333 | AH159: 428.99 | AI159: 45705.09 | AJ159: 10000 | AK159: 2031-11-25 | AL159: 143 | AM159: -505.88 | AN159: 2031-11-25 | AO159: 142 | AP159: -505.88 | AY159: 48177 | BA159: FALSE | BC159: 142 | BD159: 2031-11-25 | BE159: 505.88 | BF159: 76.90470175 | BG159: 428.9752982 | BH159: 45704.29481
B160: 143 | C160: 505.88 | E160: 76.18 | F160: 429.7 | G160: 45275.39 | J160: 143 | K160: 2031-12-25 | O160: 505.88 | P160: 76.18 | Q160: 429.7 | R160: 45275.39 | T160: 2031-12-25 | U160: 144 | V160: -505.88 | W160: 2031-12-25 | X160: 143 | Y160: -505.88 | AD160: 143 | AE160: 2031-12-25 | AF160: 505.88 | AG160: 76.17515 | AH160: 429.7 | AI160: 45275.39 | AJ160: 10000 | AK160: 2031-12-25 | AL160: 144 | AM160: -505.88 | AN160: 2031-12-25 | AO160: 143 | AP160: -505.88 | AY160: 48207 | BA160: FALSE | BC160: 143 | BD160: 2031-12-25 | BE160: 505.88 | BF160: 76.1895949 | BG160: 429.6904051 | BH160: 45274.60441
B161: 144 | C161: 505.88 | E161: 75.46 | F161: 430.42 | G161: 44844.97 | J161: 144 | K161: 2032-01-25 | O161: 505.88 | P161: 75.46 | Q161: 430.42 | R161: 44844.97 | T161: 2032-01-25 | U161: 145 | V161: -505.88 | W161: 2032-01-25 | X161: 144 | Y161: -505.88 | AD161: 144 | AE161: 2032-01-25 | AF161: 505.88 | AG161: 75.45898333 | AH161: 430.42 | AI161: 44844.97 | AJ161: 10000 | AK161: 2032-01-25 | AL161: 145 | AM161: -505.88 | AN161: 2032-01-25 | AO161: 144 | AP161: -505.88 | AY161: 48238 | BA161: FALSE | BC161: 144 | BD161: 2032-01-25 | BE161: 505.88 | BF161: 75.47329597 | BG161: 430.406704 | BH161: 44844.1977
B162: 145 | C162: 505.88 | E162: 74.74 | F162: 431.14 | G162: 44413.83 | J162: 145 | K162: 2032-02-25 | O162: 505.88 | P162: 74.74 | Q162: 431.14 | R162: 44413.83 | T162: 2032-02-25 | U162: 146 | V162: -505.88 | W162: 2032-02-25 | X162: 145 | Y162: -505.88 | AD162: 145 | AE162: 2032-02-25 | AF162: 505.88 | AG162: 74.74161667 | AH162: 431.14 | AI162: 44413.83 | AJ162: 10000 | AK162: 2032-02-25 | AL162: 146 | AM162: -505.88 | AN162: 2032-02-25 | AO162: 145 | AP162: -505.88 | AY162: 48269 | BA162: FALSE | BC162: 145 | BD162: 2032-02-25 | BE162: 505.88 | BF162: 74.75580295 | BG162: 431.1241971 | BH162: 44413.07351
B163: 146 | C163: 505.88 | E163: 74.02 | F163: 431.86 | G163: 43981.97 | J163: 146 | K163: 2032-03-25 | O163: 505.88 | P163: 74.02 | Q163: 431.86 | R163: 43981.97 | T163: 2032-03-25 | U163: 147 | V163: -505.88 | W163: 2032-03-25 | X163: 146 | Y163: -505.88 | AD163: 146 | AE163: 2032-03-25 | AF163: 505.88 | AG163: 74.02305 | AH163: 431.86 | AI163: 43981.97 | AJ163: 10000 | AK163: 2032-03-25 | AL163: 147 | AM163: -505.88 | AN163: 2032-03-25 | AO163: 146 | AP163: -505.88 | AY163: 48298 | BA163: FALSE | BC163: 146 | BD163: 2032-03-25 | BE163: 505.88 | BF163: 74.03711386 | BG163: 431.8428861 | BH163: 43981.23062
B164: 147 | C164: 505.88 | E164: 73.3 | F164: 432.58 | G164: 43549.39 | J164: 147 | K164: 2032-04-25 | O164: 505.88 | P164: 73.3 | Q164: 432.58 | R164: 43549.39 | T164: 2032-04-25 | U164: 148 | V164: -505.88 | W164: 2032-04-25 | X164: 147 | Y164: -505.88 | AD164: 147 | AE164: 2032-04-25 | AF164: 505.88 | AG164: 73.30328333 | AH164: 432.58 | AI164: 43549.39 | AJ164: 10000 | AK164: 2032-04-25 | AL164: 148 | AM164: -505.88 | AN164: 2032-04-25 | AO164: 147 | AP164: -505.88 | AY164: 48329 | BA164: FALSE | BC164: 147 | BD164: 2032-04-25 | BE164: 505.88 | BF164: 73.31722671 | BG164: 432.5627733 | BH164: 43548.66785
B165: 148 | C165: 505.88 | E165: 72.58 | F165: 433.3 | G165: 43116.09 | J165: 148 | K165: 2032-05-25 | O165: 505.88 | P165: 72.58 | Q165: 433.3 | R165: 43116.09 | T165: 2032-05-25 | U165: 149 | V165: -505.88 | W165: 2032-05-25 | X165: 148 | Y165: -505.88 | AD165: 148 | AE165: 2032-05-25 | AF165: 505.88 | AG165: 72.58231667 | AH165: 433.3 | AI165: 43116.09 | AJ165: 10000 | AK165: 2032-05-25 | AL165: 149 | AM165: -505.88 | AN165: 2032-05-25 | AO165: 148 | AP165: -505.88 | AY165: 48359 | BA165: FALSE | BC165: 148 | BD165: 2032-05-25 | BE165: 505.88 | BF165: 72.5961395 | BG165: 433.2838605 | BH165: 43115.38399
B166: 149 | C166: 505.88 | E166: 71.86 | F166: 434.02 | G166: 42682.07 | J166: 149 | K166: 2032-06-25 | O166: 505.88 | P166: 71.86 | Q166: 434.02 | R166: 42682.07 | T166: 2032-06-25 | U166: 150 | V166: -505.88 | W166: 2032-06-25 | X166: 149 | Y166: -505.88 | AD166: 149 | AE166: 2032-06-25 | AF166: 505.88 | AG166: 71.86015 | AH166: 434.02 | AI166: 42682.07 | AJ166: 10000 | AK166: 2032-06-25 | AL166: 150 | AM166: -505.88 | AN166: 2032-06-25 | AO166: 149 | AP166: -505.88 | AY166: 48390 | BA166: FALSE | BC166: 149 | BD166: 2032-06-25 | BE166: 505.88 | BF166: 71.87385023 | BG166: 434.0061498 | BH166: 42681.37784
B167: 150 | C167: 505.88 | E167: 71.14 | F167: 434.74 | G167: 42247.33 | J167: 150 | K167: 2032-07-25 | O167: 505.88 | P167: 71.14 | Q167: 434.74 | R167: 42247.33 | T167: 2032-07-25 | U167: 151 | V167: -505.88 | W167: 2032-07-25 | X167: 150 | Y167: -505.88 | AD167: 150 | AE167: 2032-07-25 | AF167: 505.88 | AG167: 71.13678333 | AH167: 434.74 | AI167: 42247.33 | AJ167: 10000 | AK167: 2032-07-25 | AL167: 151 | AM167: -505.88 | AN167: 2032-07-25 | AO167: 150 | AP167: -505.88 | AY167: 48420 | BA167: FALSE | BC167: 150 | BD167: 2032-07-25 | BE167: 505.88 | BF167: 71.15035689 | BG167: 434.7296431 | BH167: 42246.64819
B168: 151 | C168: 505.88 | E168: 70.41 | F168: 435.47 | G168: 41811.86 | J168: 151 | K168: 2032-08-25 | O168: 505.88 | P168: 70.41 | Q168: 435.47 | R168: 41811.86 | T168: 2032-08-25 | U168: 152 | V168: -505.88 | W168: 2032-08-25 | X168: 151 | Y168: -505.88 | AD168: 151 | AE168: 2032-08-25 | AF168: 505.88 | AG168: 70.41221667 | AH168: 435.47 | AI168: 41811.86 | AJ168: 10000 | AK168: 2032-08-25 | AL168: 152 | AM168: -505.88 | AN168: 2032-08-25 | AO168: 151 | AP168: -505.88 | AY168: 48451 | BA168: FALSE | BC168: 151 | BD168: 2032-08-25 | BE168: 505.88 | BF168: 70.42565748 | BG168: 435.4543425 | BH168: 41811.19385
B169: 152 | C169: 505.88 | E169: 69.69 | F169: 436.19 | G169: 41375.67 | J169: 152 | K169: 2032-09-25 | O169: 505.88 | P169: 69.69 | Q169: 436.19 | R169: 41375.67 | T169: 2032-09-25 | U169: 153 | V169: -505.88 | W169: 2032-09-25 | X169: 152 | Y169: -505.88 | AD169: 152 | AE169: 2032-09-25 | AF169: 505.88 | AG169: 69.68643333 | AH169: 436.19 | AI169: 41375.67 | AJ169: 10000 | AK169: 2032-09-25 | AL169: 153 | AM169: -505.88 | AN169: 2032-09-25 | AO169: 152 | AP169: -505.88 | AY169: 48482 | BA169: FALSE | BC169: 152 | BD169: 2032-09-25 | BE169: 505.88 | BF169: 69.69974999 | BG169: 436.18025 | BH169: 41375.0136
B170: 153 | C170: 505.88 | E170: 68.96 | F170: 436.92 | G170: 40938.75 | J170: 153 | K170: 2032-10-25 | O170: 505.88 | P170: 68.96 | Q170: 436.92 | R170: 40938.75 | T170: 2032-10-25 | U170: 154 | V170: -505.88 | W170: 2032-10-25 | X170: 153 | Y170: -505.88 | AD170: 153 | AE170: 2032-10-25 | AF170: 505.88 | AG170: 68.95945 | AH170: 436.92 | AI170: 40938.75 | AJ170: 10000 | AK170: 2032-10-25 | AL170: 154 | AM170: -505.88 | AN170: 2032-10-25 | AO170: 153 | AP170: -505.88 | AY170: 48512 | BA170: FALSE | BC170: 153 | BD170: 2032-10-25 | BE170: 505.88 | BF170: 68.9726324 | BG170: 436.9073676 | BH170: 40938.10623
B171: 154 | C171: 505.88 | E171: 68.23 | F171: 437.65 | G171: 40501.1 | J171: 154 | K171: 2032-11-25 | O171: 505.88 | P171: 68.23 | Q171: 437.65 | R171: 40501.1 | T171: 2032-11-25 | U171: 155 | V171: -505.88 | W171: 2032-11-25 | X171: 154 | Y171: -505.88 | AD171: 154 | AE171: 2032-11-25 | AF171: 505.88 | AG171: 68.23125 | AH171: 437.65 | AI171: 40501.1 | AJ171: 10000 | AK171: 2032-11-25 | AL171: 155 | AM171: -505.88 | AN171: 2032-11-25 | AO171: 154 | AP171: -505.88 | AY171: 48543 | BA171: FALSE | BC171: 154 | BD171: 2032-11-25 | BE171: 505.88 | BF171: 68.2443027 | BG171: 437.6356973 | BH171: 40500.47054
B172: 155 | C172: 505.88 | E172: 67.5 | F172: 438.38 | G172: 40062.72 | J172: 155 | K172: 2032-12-25 | O172: 505.88 | P172: 67.5 | Q172: 438.38 | R172: 40062.72 | T172: 2032-12-25 | U172: 156 | V172: -505.88 | W172: 2032-12-25 | X172: 155 | Y172: -505.88 | AD172: 155 | AE172: 2032-12-25 | AF172: 505.88 | AG172: 67.50183333 | AH172: 438.38 | AI172: 40062.72 | AJ172: 10000 | AK172: 2032-12-25 | AL172: 156 | AM172: -505.88 | AN172: 2032-12-25 | AO172: 155 | AP172: -505.88 | AY172: 48573 | BA172: FALSE | BC172: 155 | BD172: 2032-12-25 | BE172: 505.88 | BF172: 67.51475887 | BG172: 438.3652411 | BH172: 40062.1053
B173: 156 | C173: 505.88 | E173: 66.77 | F173: 439.11 | G173: 39623.61 | J173: 156 | K173: 2033-01-25 | O173: 505.88 | P173: 66.77 | Q173: 439.11 | R173: 39623.61 | T173: 2033-01-25 | U173: 157 | V173: -505.88 | W173: 2033-01-25 | X173: 156 | Y173: -505.88 | AD173: 156 | AE173: 2033-01-25 | AF173: 505.88 | AG173: 66.7712 | AH173: 439.11 | AI173: 39623.61 | AJ173: 10000 | AK173: 2033-01-25 | AL173: 157 | AM173: -505.88 | AN173: 2033-01-25 | AO173: 156 | AP173: -505.88 | AY173: 48604 | BA173: FALSE | BC173: 156 | BD173: 2033-01-25 | BE173: 505.88 | BF173: 66.78399888 | BG173: 439.0960011 | BH173: 39623.00929
B174: 157 | C174: 505.88 | E174: 66.04 | F174: 439.84 | G174: 39183.77 | J174: 157 | K174: 2033-02-25 | O174: 505.88 | P174: 66.04 | Q174: 439.84 | R174: 39183.77 | T174: 2033-02-25 | U174: 158 | V174: -505.88 | W174: 2033-02-25 | X174: 157 | Y174: -505.88 | AD174: 157 | AE174: 2033-02-25 | AF174: 505.88 | AG174: 66.03935 | AH174: 439.84 | AI174: 39183.77 | AJ174: 10000 | AK174: 2033-02-25 | AL174: 158 | AM174: -505.88 | AN174: 2033-02-25 | AO174: 157 | AP174: -505.88 | AY174: 48635 | BA174: FALSE | BC174: 157 | BD174: 2033-02-25 | BE174: 505.88 | BF174: 66.0520207 | BG174: 439.8279793 | BH174: 39183.18131
B175: 158 | C175: 505.88 | E175: 65.31 | F175: 440.57 | G175: 38743.2 | J175: 158 | K175: 2033-03-25 | O175: 505.88 | P175: 65.31 | Q175: 440.57 | R175: 38743.2 | T175: 2033-03-25 | U175: 159 | V175: -505.88 | W175: 2033-03-25 | X175: 158 | Y175: -505.88 | AD175: 158 | AE175: 2033-03-25 | AF175: 505.88 | AG175: 65.30628333 | AH175: 440.57 | AI175: 38743.2 | AJ175: 10000 | AK175: 2033-03-25 | AL175: 159 | AM175: -505.88 | AN175: 2033-03-25 | AO175: 158 | AP175: -505.88 | AY175: 48663 | BA175: FALSE | BC175: 158 | BD175: 2033-03-25 | BE175: 505.88 | BF175: 65.3188223 | BG175: 440.5611777 | BH175: 38742.62014
B176: 159 | C176: 505.88 | E176: 64.57 | F176: 441.31 | G176: 38301.89 | J176: 159 | K176: 2033-04-25 | O176: 505.88 | P176: 64.57 | Q176: 441.31 | R176: 38301.89 | T176: 2033-04-25 | U176: 160 | V176: -505.88 | W176: 2033-04-25 | X176: 159 | Y176: -505.88 | AD176: 159 | AE176: 2033-04-25 | AF176: 505.88 | AG176: 64.572 | AH176: 441.31 | AI176: 38301.89 | AJ176: 10000 | AK176: 2033-04-25 | AL176: 160 | AM176: -505.88 | AN176: 2033-04-25 | AO176: 159 | AP176: -505.88 | AY176: 48694 | BA176: FALSE | BC176: 159 | BD176: 2033-04-25 | BE176: 505.88 | BF176: 64.58440166 | BG176: 441.2955983 | BH176: 38301.32454
B177: 160 | C177: 505.88 | E177: 63.84 | F177: 442.04 | G177: 37859.85 | J177: 160 | K177: 2033-05-25 | O177: 505.88 | P177: 63.84 | Q177: 442.04 | R177: 37859.85 | T177: 2033-05-25 | U177: 161 | V177: -505.88 | W177: 2033-05-25 | X177: 160 | Y177: -505.88 | AD177: 160 | AE177: 2033-05-25 | AF177: 505.88 | AG177: 63.83648333 | AH177: 442.04 | AI177: 37859.85 | AJ177: 10000 | AK177: 2033-05-25 | AL177: 161 | AM177: -505.88 | AN177: 2033-05-25 | AO177: 160 | AP177: -505.88 | AY177: 48724 | BA177: FALSE | BC177: 160 | BD177: 2033-05-25 | BE177: 505.88 | BF177: 63.84875673 | BG177: 442.0312433 | BH177: 37859.2933
B178: 161 | C178: 505.88 | E178: 63.1 | F178: 442.78 | G178: 37417.07 | J178: 161 | K178: 2033-06-25 | O178: 505.88 | P178: 63.1 | Q178: 442.78 | R178: 37417.07 | T178: 2033-06-25 | U178: 162 | V178: -505.88 | W178: 2033-06-25 | X178: 161 | Y178: -505.88 | AD178: 161 | AE178: 2033-06-25 | AF178: 505.88 | AG178: 63.09975 | AH178: 442.78 | AI178: 37417.07 | AJ178: 10000 | AK178: 2033-06-25 | AL178: 162 | AM178: -505.88 | AN178: 2033-06-25 | AO178: 161 | AP178: -505.88 | AY178: 48755 | BA178: FALSE | BC178: 161 | BD178: 2033-06-25 | BE178: 505.88 | BF178: 63.11188547 | BG178: 442.7681145 | BH178: 37416.52518
B179: 162 | C179: 505.88 | E179: 62.36 | F179: 443.52 | G179: 36973.55 | J179: 162 | K179: 2033-07-25 | O179: 505.88 | P179: 62.36 | Q179: 443.52 | R179: 36973.55 | T179: 2033-07-25 | U179: 163 | V179: -505.88 | W179: 2033-07-25 | X179: 162 | Y179: -505.88 | AD179: 162 | AE179: 2033-07-25 | AF179: 505.88 | AG179: 62.36178333 | AH179: 443.52 | AI179: 36973.55 | AJ179: 10000 | AK179: 2033-07-25 | AL179: 163 | AM179: -505.88 | AN179: 2033-07-25 | AO179: 162 | AP179: -505.88 | AY179: 48785 | BA179: FALSE | BC179: 162 | BD179: 2033-07-25 | BE179: 505.88 | BF179: 62.37378583 | BG179: 443.5062142 | BH179: 36973.01897
B180: 163 | C180: 505.88 | E180: 61.62 | F180: 444.26 | G180: 36529.29 | J180: 163 | K180: 2033-08-25 | O180: 505.88 | P180: 61.62 | Q180: 444.26 | R180: 36529.29 | T180: 2033-08-25 | U180: 164 | V180: -505.88 | W180: 2033-08-25 | X180: 163 | Y180: -505.88 | AD180: 163 | AE180: 2033-08-25 | AF180: 505.88 | AG180: 61.62258333 | AH180: 444.26 | AI180: 36529.29 | AJ180: 10000 | AK180: 2033-08-25 | AL180: 164 | AM180: -505.88 | AN180: 2033-08-25 | AO180: 163 | AP180: -505.88 | AY180: 48816 | BA180: FALSE | BC180: 163 | BD180: 2033-08-25 | BE180: 505.88 | BF180: 61.63445578 | BG180: 444.2455442 | BH180: 36528.77342
B181: 164 | C181: 505.88 | E181: 60.88 | F181: 445 | G181: 36084.29 | J181: 164 | K181: 2033-09-25 | O181: 505.88 | P181: 60.88 | Q181: 445 | R181: 36084.29 | T181: 2033-09-25 | U181: 165 | V181: -505.88 | W181: 2033-09-25 | X181: 164 | Y181: -505.88 | AD181: 164 | AE181: 2033-09-25 | AF181: 505.88 | AG181: 60.88215 | AH181: 445 | AI181: 36084.29 | AJ181: 10000 | AK181: 2033-09-25 | AL181: 165 | AM181: -505.88 | AN181: 2033-09-25 | AO181: 164 | AP181: -505.88 | AY181: 48847 | BA181: FALSE | BC181: 164 | BD181: 2033-09-25 | BE181: 505.88 | BF181: 60.89389325 | BG181: 444.9861067 | BH181: 36083.78732
B182: 165 | C182: 505.88 | E182: 60.14 | F182: 445.74 | G182: 35638.55 | J182: 165 | K182: 2033-10-25 | O182: 505.88 | P182: 60.14 | Q182: 445.74 | R182: 35638.55 | T182: 2033-10-25 | U182: 166 | V182: -505.88 | W182: 2033-10-25 | X182: 165 | Y182: -505.88 | AD182: 165 | AE182: 2033-10-25 | AF182: 505.88 | AG182: 60.14048333 | AH182: 445.74 | AI182: 35638.55 | AJ182: 10000 | AK182: 2033-10-25 | AL182: 166 | AM182: -505.88 | AN182: 2033-10-25 | AO182: 165 | AP182: -505.88 | AY182: 48877 | BA182: FALSE | BC182: 165 | BD182: 2033-10-25 | BE182: 505.88 | BF182: 60.1520962 | BG182: 445.7279038 | BH182: 35638.05941
B183: 166 | C183: 505.88 | E183: 59.4 | F183: 446.48 | G183: 35192.07 | J183: 166 | K183: 2033-11-25 | O183: 505.88 | P183: 59.4 | Q183: 446.48 | R183: 35192.07 | T183: 2033-11-25 | U183: 167 | V183: -505.88 | W183: 2033-11-25 | X183: 166 | Y183: -505.88 | AD183: 166 | AE183: 2033-11-25 | AF183: 505.88 | AG183: 59.39758333 | AH183: 446.48 | AI183: 35192.07 | AJ183: 10000 | AK183: 2033-11-25 | AL183: 167 | AM183: -505.88 | AN183: 2033-11-25 | AO183: 166 | AP183: -505.88 | AY183: 48908 | BA183: FALSE | BC183: 166 | BD183: 2033-11-25 | BE183: 505.88 | BF183: 59.40906256 | BG183: 446.4709374 | BH183: 35191.58847
B184: 167 | C184: 505.88 | E184: 58.65 | F184: 447.23 | G184: 34744.84 | J184: 167 | K184: 2033-12-25 | O184: 505.88 | P184: 58.65 | Q184: 447.23 | R184: 34744.84 | T184: 2033-12-25 | U184: 168 | V184: -505.88 | W184: 2033-12-25 | X184: 167 | Y184: -505.88 | AD184: 167 | AE184: 2033-12-25 | AF184: 505.88 | AG184: 58.65345 | AH184: 447.23 | AI184: 34744.84 | AJ184: 10000 | AK184: 2033-12-25 | AL184: 168 | AM184: -505.88 | AN184: 2033-12-25 | AO184: 167 | AP184: -505.88 | AY184: 48938 | BA184: FALSE | BC184: 167 | BD184: 2033-12-25 | BE184: 505.88 | BF184: 58.66479028 | BG184: 447.2152097 | BH184: 34744.37327
B185: 168 | C185: 505.88 | E185: 57.91 | F185: 447.97 | G185: 34296.87 | J185: 168 | K185: 2034-01-25 | O185: 505.88 | P185: 57.91 | Q185: 447.97 | R185: 34296.87 | T185: 2034-01-25 | U185: 169 | V185: -505.88 | W185: 2034-01-25 | X185: 168 | Y185: -505.88 | AD185: 168 | AE185: 2034-01-25 | AF185: 505.88 | AG185: 57.90806667 | AH185: 447.97 | AI185: 34296.87 | AJ185: 10000 | AK185: 2034-01-25 | AL185: 169 | AM185: -505.88 | AN185: 2034-01-25 | AO185: 168 | AP185: -505.88 | AY185: 48969 | BA185: FALSE | BC185: 168 | BD185: 2034-01-25 | BE185: 505.88 | BF185: 57.91927728 | BG185: 447.9607227 | BH185: 34296.41254
B186: 169 | C186: 505.88 | E186: 57.16 | F186: 448.72 | G186: 33848.15 | J186: 169 | K186: 2034-02-25 | O186: 505.88 | P186: 57.16 | Q186: 448.72 | R186: 33848.15 | T186: 2034-02-25 | U186: 170 | V186: -505.88 | W186: 2034-02-25 | X186: 169 | Y186: -505.88 | AD186: 169 | AE186: 2034-02-25 | AF186: 505.88 | AG186: 57.16145 | AH186: 448.72 | AI186: 33848.15 | AJ186: 10000 | AK186: 2034-02-25 | AL186: 170 | AM186: -505.88 | AN186: 2034-02-25 | AO186: 169 | AP186: -505.88 | AY186: 49000 | BA186: =IF($B186=$C$7,IF(AND($A$7=0,$B186>$C$7),0,IF(AND($A$7=0,$D186=0),$C185,IF(AND($A$7=0,$B186=$B$13),ROUNDDOWN($F186+$E186,2),IF($B186>$B$13,0,IF(AND($A$7=0,$D186<>0),$D186,IF($B186>$B$13,0,IF($B186=$B$13,ROUNDDOWN($F186+$E186,2),ROUND(-PMT($E$13/12,$B$13,$C$13,0,0),2))))))))) -> FALSE | BC186: 169 | BD186: 2034-02-25 | BE186: 505.88 | BF186: 57.17252151 | BG186: 448.7074785 | BH186: 33847.70506
B187: 170 | C187: 505.88 | E187: 56.41 | F187: 449.47 | G187: 33398.68 | J187: 170 | K187: 2034-03-25 | O187: 505.88 | P187: 56.41 | Q187: 449.47 | R187: 33398.68 | T187: 2034-03-25 | U187: 171 | V187: -505.88 | W187: 2034-03-25 | X187: 170 | Y187: -505.88 | AD187: 170 | AE187: 2034-03-25 | AF187: 505.88 | AG187: 56.41358333 | AH187: 449.47 | AI187: 33398.68 | AJ187: 10000 | AK187: 2034-03-25 | AL187: 171 | AM187: -505.88 | AN187: 2034-03-25 | AO187: 170 | AP187: -505.88 | AY187: 49028 | BA187: FALSE | BC187: 170 | BD187: 2034-03-25 | BE187: 505.88 | BF187: 56.42452089 | BG187: 449.4554791 | BH187: 33398.24958
B188: 171 | C188: 505.88 | E188: 55.66 | F188: 450.22 | G188: 32948.46 | J188: 171 | K188: 2034-04-25 | O188: 505.88 | P188: 55.66 | Q188: 450.22 | R188: 32948.46 | T188: 2034-04-25 | U188: 172 | V188: -505.88 | W188: 2034-04-25 | X188: 171 | Y188: -505.88 | AD188: 171 | AE188: 2034-04-25 | AF188: 505.88 | AG188: 55.66446667 | AH188: 450.22 | AI188: 32948.46 | AJ188: 10000 | AK188: 2034-04-25 | AL188: 172 | AM188: -505.88 | AN188: 2034-04-25 | AO188: 171 | AP188: -505.88 | AY188: 49059 | BA188: FALSE | BC188: 171 | BD188: 2034-04-25 | BE188: 505.88 | BF188: 55.67527334 | BG188: 450.2047267 | BH188: 32948.04486
B189: 172 | C189: 505.88 | E189: 54.91 | F189: 450.97 | G189: 32497.49 | J189: 172 | K189: 2034-05-25 | O189: 505.88 | P189: 54.91 | Q189: 450.97 | R189: 32497.49 | T189: 2034-05-25 | U189: 173 | V189: -505.88 | W189: 2034-05-25 | X189: 172 | Y189: -505.88 | AD189: 172 | AE189: 2034-05-25 | AF189: 505.88 | AG189: 54.9141 | AH189: 450.97 | AI189: 32497.49 | AJ189: 10000 | AK189: 2034-05-25 | AL189: 173 | AM189: -505.88 | AN189: 2034-05-25 | AO189: 172 | AP189: -505.88 | AY189: 49089 | BA189: FALSE | BC189: 172 | BD189: 2034-05-25 | BE189: 505.88 | BF189: 54.92477678 | BG189: 450.9552232 | BH189: 32497.08963
B190: 173 | C190: 505.88 | E190: 54.16 | F190: 451.72 | G190: 32045.77 | J190: 173 | K190: 2034-06-25 | O190: 505.88 | P190: 54.16 | Q190: 451.72 | R190: 32045.77 | T190: 2034-06-25 | U190: 174 | V190: -505.88 | W190: 2034-06-25 | X190: 173 | Y190: -505.88 | AD190: 173 | AE190: 2034-06-25 | AF190: 505.88 | AG190: 54.16248333 | AH190: 451.72 | AI190: 32045.77 | AJ190: 10000 | AK190: 2034-06-25 | AL190: 174 | AM190: -505.88 | AN190: 2034-06-25 | AO190: 173 | AP190: -505.88 | AY190: 49120 | BA190: FALSE | BC190: 173 | BD190: 2034-06-25 | BE190: 505.88 | BF190: 54.17302914 | BG190: 451.7069709 | BH190: 32045.38266
B191: 174 | C191: 505.88 | E191: 53.41 | F191: 452.47 | G191: 31593.3 | J191: 174 | K191: 2034-07-25 | O191: 505.88 | P191: 53.41 | Q191: 452.47 | R191: 31593.3 | T191: 2034-07-25 | U191: 175 | V191: -505.88 | W191: 2034-07-25 | X191: 174 | Y191: -505.88 | AD191: 174 | AE191: 2034-07-25 | AF191: 505.88 | AG191: 53.40961667 | AH191: 452.47 | AI191: 31593.3 | AJ191: 10000 | AK191: 2034-07-25 | AL191: 175 | AM191: -505.88 | AN191: 2034-07-25 | AO191: 174 | AP191: -505.88 | AY191: 49150 | BA191: FALSE | BC191: 174 | BD191: 2034-07-25 | BE191: 505.88 | BF191: 53.42002833 | BG191: 452.4599717 | BH191: 31592.92269
B192: 175 | C192: 505.88 | E192: 52.66 | F192: 453.22 | G192: 31140.08 | J192: 175 | K192: 2034-08-25 | O192: 505.88 | P192: 52.66 | Q192: 453.22 | R192: 31140.08 | T192: 2034-08-25 | U192: 176 | V192: -505.88 | W192: 2034-08-25 | X192: 175 | Y192: -505.88 | AD192: 175 | AE192: 2034-08-25 | AF192: 505.88 | AG192: 52.6555 | AH192: 453.22 | AI192: 31140.08 | AJ192: 10000 | AK192: 2034-08-25 | AL192: 176 | AM192: -505.88 | AN192: 2034-08-25 | AO192: 175 | AP192: -505.88 | AY192: 49181 | BA192: FALSE | BC192: 175 | BD192: 2034-08-25 | BE192: 505.88 | BF192: 52.66577226 | BG192: 453.2142277 | BH192: 31139.70846
B193: 176 | C193: 505.88 | E193: 51.9 | F193: 453.98 | G193: 30686.1 | J193: 176 | K193: 2034-09-25 | O193: 505.88 | P193: 51.9 | Q193: 453.98 | R193: 30686.1 | T193: 2034-09-25 | U193: 177 | V193: -505.88 | W193: 2034-09-25 | X193: 176 | Y193: -505.88 | AD193: 176 | AE193: 2034-09-25 | AF193: 505.88 | AG193: 51.90013333 | AH193: 453.98 | AI193: 30686.1 | AJ193: 10000 | AK193: 2034-09-25 | AL193: 177 | AM193: -505.88 | AN193: 2034-09-25 | AO193: 176 | AP193: -505.88 | AY193: 49212 | BA193: FALSE | BC193: 176 | BD193: 2034-09-25 | BE193: 505.88 | BF193: 51.91025883 | BG193: 453.9697412 | BH193: 30685.73872
B194: 177 | C194: 505.88 | E194: 51.14 | F194: 454.74 | G194: 30231.36 | J194: 177 | K194: 2034-10-25 | O194: 505.88 | P194: 51.14 | Q194: 454.74 | R194: 30231.36 | T194: 2034-10-25 | U194: 178 | V194: -505.88 | W194: 2034-10-25 | X194: 177 | Y194: -505.88 | AD194: 177 | AE194: 2034-10-25 | AF194: 505.88 | AG194: 51.1435 | AH194: 454.74 | AI194: 30231.36 | AJ194: 10000 | AK194: 2034-10-25 | AL194: 178 | AM194: -505.88 | AN194: 2034-10-25 | AO194: 177 | AP194: -505.88 | AY194: 49242 | BA194: FALSE | BC194: 177 | BD194: 2034-10-25 | BE194: 505.88 | BF194: 51.15348595 | BG194: 454.726514 | BH194: 30231.01221
B195: 178 | C195: 505.88 | E195: 50.39 | F195: 455.49 | G195: 29775.87 | J195: 178 | K195: 2034-11-25 | O195: 505.88 | P195: 50.39 | Q195: 455.49 | R195: 29775.87 | T195: 2034-11-25 | U195: 179 | V195: -505.88 | W195: 2034-11-25 | X195: 178 | Y195: -505.88 | AD195: 178 | AE195: 2034-11-25 | AF195: 505.88 | AG195: 50.3856 | AH195: 455.49 | AI195: 29775.87 | AJ195: 10000 | AK195: 2034-11-25 | AL195: 179 | AM195: -505.88 | AN195: 2034-11-25 | AO195: 178 | AP195: -505.88 | AY195: 49273 | BA195: FALSE | BC195: 178 | BD195: 2034-11-25 | BE195: 505.88 | BF195: 50.39545153 | BG195: 455.4845485 | BH195: 29775.52766
B196: 179 | C196: 505.88 | E196: 49.63 | F196: 456.25 | G196: 29319.62 | J196: 179 | K196: 2034-12-25 | O196: 505.88 | P196: 49.63 | Q196: 456.25 | R196: 29319.62 | T196: 2034-12-25 | U196: 180 | V196: -505.88 | W196: 2034-12-25 | X196: 179 | Y196: -505.88 | AD196: 179 | AE196: 2034-12-25 | AF196: 505.88 | AG196: 49.62645 | AH196: 456.25 | AI196: 29319.62 | AJ196: 10000 | AK196: 2034-12-25 | AL196: 180 | AM196: -505.88 | AN196: 2034-12-25 | AO196: 179 | AP196: -505.88 | AY196: 49303 | BA196: FALSE | BC196: 179 | BD196: 2034-12-25 | BE196: 505.88 | BF196: 49.63615345 | BG196: 456.2438466 | BH196: 29319.28381
B197: 180 | C197: 505.88 | E197: 48.87 | F197: 457.01 | G197: 28862.61 | J197: 180 | K197: 2035-01-25 | O197: 505.88 | P197: 48.87 | Q197: 457.01 | R197: 28862.61 | T197: 2035-01-25 | U197: 181 | V197: -505.88 | W197: 2035-01-25 | X197: 180 | Y197: -505.88 | AD197: 180 | AE197: 2035-01-25 | AF197: 505.88 | AG197: 48.86603333 | AH197: 457.01 | AI197: 28862.61 | AJ197: 10000 | AK197: 2035-01-25 | AL197: 181 | AM197: -505.88 | AN197: 2035-01-25 | AO197: 180 | AP197: -505.88 | AY197: 49334 | BA197: FALSE | BC197: 180 | BD197: 2035-01-25 | BE197: 505.88 | BF197: 48.87558961 | BG197: 457.0044104 | BH197: 28862.2794
B198: 181 | C198: 505.88 | E198: 48.1 | F198: =IF(B198>$B$13,0,IF(B198=$B$13,G197,C198-E198)) -> 457.78 | G198: =IF(B198>$B$13,0,G197-F198) -> 28404.83 | J198: 181 | K198: 2035-02-25 | O198: 505.88 | P198: 48.1 | Q198: 457.78 | R198: 28404.83 | T198: 2035-02-25 | U198: 182 | V198: -505.88 | W198: 2035-02-25 | X198: 181 | Y198: -505.88 | AD198: 181 | AE198: 2035-02-25 | AF198: 505.88 | AG198: 48.10435 | AH198: 457.78 | AI198: 28404.83 | AJ198: 10000 | AK198: 2035-02-25 | AL198: 182 | AM198: -505.88 | AN198: 2035-02-25 | AO198: 181 | AP198: -505.88 | AY198: 49365 | BA198: FALSE | BC198: 181 | BD198: 2035-02-25 | BE198: 505.88 | BF198: 48.1137579 | BG198: 457.7662421 | BH198: 28404.51316
B199: 182 | C199: 505.88 | E199: 47.34 | F199: =IF(B199>$B$13,0,IF(B199=$B$13,G198,C199-E199)) -> 458.54 | G199: =IF(B199>$B$13,0,G198-F199) -> 27946.29 | J199: 182 | K199: 2035-03-25 | O199: 505.88 | P199: 47.34 | Q199: 458.54 | R199: 27946.29 | T199: 2035-03-25 | U199: 183 | V199: -505.88 | W199: 2035-03-25 | X199: 182 | Y199: -505.88 | AD199: 182 | AE199: 2035-03-25 | AF199: 505.88 | AG199: 47.34138333 | AH199: 458.54 | AI199: 27946.29 | AJ199: 10000 | AK199: 2035-03-25 | AL199: 183 | AM199: -505.88 | AN199: 2035-03-25 | AO199: 182 | AP199: -505.88 | AY199: 49393 | BA199: FALSE | BC199: 182 | BD199: 2035-03-25 | BE199: 505.88 | BF199: 47.35065622 | BG199: 458.5293438 | BH199: 27945.98382
B200: 183 | C200: 505.88 | E200: 46.58 | F200: 459.3 | G200: 27486.99 | J200: 183 | K200: 2035-04-25 | O200: 505.88 | P200: 46.58 | Q200: 459.3 | R200: 27486.99 | T200: 2035-04-25 | U200: 184 | V200: -505.88 | W200: 2035-04-25 | X200: 183 | Y200: -505.88 | AD200: 183 | AE200: 2035-04-25 | AF200: 505.88 | AG200: 46.57715 | AH200: 459.3 | AI200: 27486.99 | AJ200: 10000 | AK200: 2035-04-25 | AL200: 184 | AM200: -505.88 | AN200: 2035-04-25 | AO200: 183 | AP200: -505.88 | AY200: 49424 | BA200: FALSE | BC200: 183 | BD200: 2035-04-25 | BE200: 505.88 | BF200: 46.58628243 | BG200: 459.2937176 | BH200: 27486.6901
B201: 184 | C201: 505.88 | E201: 45.81 | F201: 460.07 | G201: 27026.92 | J201: 184 | K201: 2035-05-25 | O201: 505.88 | P201: 45.81 | Q201: 460.07 | R201: 27026.92 | T201: 2035-05-25 | U201: 185 | V201: -505.88 | W201: 2035-05-25 | X201: 184 | Y201: -505.88 | AD201: 184 | AE201: 2035-05-25 | AF201: 505.88 | AG201: 45.81165 | AH201: 460.07 | AI201: 27026.92 | AJ201: 10000 | AK201: 2035-05-25 | AL201: 185 | AM201: -505.88 | AN201: 2035-05-25 | AO201: 184 | AP201: -505.88 | AY201: 49454 | BA201: FALSE | BC201: 184 | BD201: 2035-05-25 | BE201: 505.88 | BF201: 45.82063442 | BG201: 460.0593656 | BH201: 27026.63073
B202: 185 | C202: 505.88 | E202: 45.04 | F202: 460.84 | G202: 26566.08 | J202: 185 | K202: 2035-06-25 | O202: 505.88 | P202: 45.04 | Q202: 460.84 | R202: 26566.08 | T202: 2035-06-25 | U202: 186 | V202: -505.88 | W202: 2035-06-25 | X202: 185 | Y202: -505.88 | AD202: 185 | AE202: 2035-06-25 | AF202: 505.88 | AG202: 45.04486667 | AH202: 460.84 | AI202: 26566.08 | AJ202: 10000 | AK202: 2035-06-25 | AL202: 186 | AM202: -505.88 | AN202: 2035-06-25 | AO202: 185 | AP202: -505.88 | AY202: 49485 | BA202: FALSE | BC202: 185 | BD202: 2035-06-25 | BE202: 505.88 | BF202: 45.05371007 | BG202: 460.8262899 | BH202: 26565.80444
B203: 186 | C203: 505.88 | E203: 44.28 | F203: 461.6 | G203: 26104.48 | J203: 186 | K203: 2035-07-25 | O203: 505.88 | P203: 44.28 | Q203: 461.6 | R203: 26104.48 | T203: 2035-07-25 | U203: 187 | V203: -505.88 | W203: 2035-07-25 | X203: 186 | Y203: -505.88 | AD203: 186 | AE203: 2035-07-25 | AF203: 505.88 | AG203: 44.2768 | AH203: 461.6 | AI203: 26104.48 | AJ203: 10000 | AK203: 2035-07-25 | AL203: 187 | AM203: -505.88 | AN203: 2035-07-25 | AO203: 186 | AP203: -505.88 | AY203: 49515 | BA203: FALSE | BC203: 186 | BD203: 2035-07-25 | BE203: 505.88 | BF203: 44.28550724 | BG203: 461.5944928 | BH203: 26104.20995
... 543 more rows

Sheet Feuil2

Sheet Feuil3
